Cogmind - Beta 13 X1 @@@ ROGUE MODE // 2023.06.26 @ 23:42:39 Player: MTF Result: Heading to fleet! Performance ------------- Evolutions (9) 4500 Regions Visited (34) 6800 Robots Destroyed (707) 3535 Value Destroyed (41078) 41078 Prototype IDs (94) 1880 Alien Tech Used (8) 1600 Bonus (31600) 31600 TOTAL SCORE: 90993 Bonus ------- Triggered High Security 500 High Alert Combat Kills 15983 Follower Combat Kills 3920 Entered Garrisons 400 Entered DSFs 500 Network Hubs Disabled 400 Met Zhirov 300 Met Warlord at Base 500 MAIN.C Attacked Warlord 500 Warlord Defense Kills 808 Built Enhanced Grunts 300 Met R17 at Cetus 500 Used Core Reset Matrix 3000 Met Warlord at Research 2000 Invited to Help at Command 2000 Scanned by Researcher 500 Met Sigix 2000 Win 3000 Friendly Fire -5511 Cogmind --------- Core Integrity 452/1600 Matter 300/300 Energy 672/690 System Corruption 46% Temperature Cool (11) Movement Walking (181) Ox1 Location To Fleet Rendezvous Parts ------- > --- POWER (4) -------- Quantum Reactor Quantum Reactor Light Quantum Reactor > --- PROPULSION (7) --- Myomer Leg Myomer Leg Myomer Leg Myomer Leg Enhanced Biometal Leg Enhanced Biometal Leg Enhanced Biometal Leg > --- UTILITY (13) ----- Advanced Heat Sink Advanced Heat Sink Advanced Heat Sink Cargo Storage Unit Experimental Targeting Computer Experimental Targeting Computer Centrium Light Armor Plating Graphene Brace Advanced Force Field > --- WEAPON (2) ------- Null Cannon Helical Railgun > --- INVENTORY (30) --- Particle Reactor Medium Treads Myomer Leg Myomer Leg Myomer Leg Myomer Leg Wheel Wheel Armored Wheel Advanced Heat Sink Experimental Coolant Injector Advanced Energy Well (500) Experimental Matter Compressor (500) Advanced Kinecellerator Advanced Force Field Advanced Hacking Suite Advanced Component Analysis Suite Long-range Tractor Beam Compact HERF Cannon Omega Cannon Mini Smartbomb Launcher Peak State ------------ > --- POWER ------------ Improved Quantum Reactor Improved Quantum Reactor Improved Quantum Reactor Improved Quantum Reactor > --- PROPULSION ------- Enhanced Biometal Leg Myomer Exoskeleton Myomer Exoskeleton > --- UTILITY ---------- Experimental Cooling System Cargo Storage Unit Experimental Signal Interpreter Experimental Targeting Computer Experimental Targeting Computer Quantum Capacitor SHELL Armor Experimental EM Disruption Field AEGIS Remote Shield > --- WEAPON ----------- Null Cannon Hypervelocity Multirail > --- INVENTORY -------- Quantum Reactor Experimental Coolant Injector Advanced Energy Well Advanced Energy Well Experimental Energy Well Experimental Matter Compressor Experimental Sensor Array Centrium Heavy Armor Plating Graphene Brace Advanced Force Field Advanced Force Field Advanced Hacking Suite Advanced Component Analysis Suite Long-range Tractor Beam Transdimensional Reconstructor Compact HERF Cannon EMDS EMDS Improved Potential Cannon Omega Cannon Mini Smartbomb Launcher [Rating: 270] Favorites ----------- Power Quantum Reactor Engine Subdweller Power Source Power Core Cooled Fission Core Reactor Quantum Reactor Propulsion Centrium Heavy Treads Treads Centrium Heavy Treads Leg Myomer Exoskeleton Wheel Armored Huge Wheel Flight Unit Improved VTOL Module Utility Experimental Targeting Computer Device Experimental Sensor Array Storage Cargo Storage Unit Processor Experimental Targeting Computer Hackware System Shield Protection Centrium Heavy Armor Plating Artifact Phase Armor Weapon Matter Neutralizer Energy Gun Beamcaster Energy Cannon Matter Neutralizer Ballistic Gun Subdweller Machine Gun Ballistic Cannon Battle Cannon Launcher Missile Launcher Special Weapon Remote Datajack Impact Weapon Power Maul Slashing Weapon Nanosword Piercing Weapon Vortex Lance Build | -11 -10 -10 -9 -9 -9 -8 -8 -8 -7 -7 -6 -6 -6 -6 -6 -6 -5 -5 -5 -5 -5 -5 -4 -4 -4 -4 -4 -3 -3 -3 -3 -2 -2 -1 ------- Run | Jun Mat Sub Mat Min Exi Min Mat Gar Fac DSF Fac Ext Cet Arc Hub Gar Fac Was Fac Upp Upp Zhi Pro Fac Upp Upp War Pro Res Qua Sec Res Tes Acc Slots Evolved 18 | . . . 2 . . . 2 . 2 . 2 . . . . . 2 . . . . . . 2 . . . . 2 . . 2 . 2 Power 3 | . . . . . . . . . 1 . . . . . . . . . . . . . . . . . . . 1 . . . . 1 Propulsion 4 | . . . 1 . . . 1 . . . . . . . . . 2 . . . . . . . . . . . . . . . . . Utility 11 | . . . 1 . . . 1 . 1 . 2 . . . . . . . . . . . . 2 . . . . 1 . . 2 . 1 Weapon . | . . . . . . . . . . . . . . . . . . . . . . . . . . . . . . . . . . . Parts Attached 1047 | 2 14 61 29 9 1 7 50 29 3 21 17 26 24 7 38 52 24 17 16 14 14 8 5 10 27 19 20 6 56 49 107 10 116 139 Power 67 | . 1 7 2 1 . 1 3 1 1 3 . 3 2 . 1 2 2 4 . . . 1 . . . . 3 . 5 . 4 . 5 15 Engine 20 | . 1 7 2 1 . . 1 . 1 2 . 3 . . . 1 1 . . . . . . . . . . . . . . . . . Core 8 | . . . . . . 1 2 1 . 1 . . . . . . 1 1 . . . . . . . . . . 1 . . . . . Reactor 39 | . . . . . . . . . . . . . 2 . 1 1 . 3 . . . 1 . . . . 3 . 4 . 4 . 5 15 Propulsion 90 | . 4 3 3 1 . 3 11 . . 1 5 3 2 . . 4 1 4 . . . 1 . 1 1 . . . 2 2 4 . 4 30 Treads 60 | . 4 3 3 . . 2 10 . . 1 5 3 2 . . 4 1 4 . . . 1 . 1 1 . . . 2 2 4 . 1 6 Leg 16 | . . . . . . . . . . . . . . . . . . . . . . . . . . . . . . . . . 3 13 Wheel 13 | . . . . 1 . 1 . . . . . . . . . . . . . . . . . . . . . . . . . . . 11 Hover . | . . . . . . . . . . . . . . . . . . . . . . . . . . . . . . . . . . . Flight 1 | . . . . . . . 1 . . . . . . . . . . . . . . . . . . . . . . . . . . . Utility 487 | 2 3 9 5 4 . . 6 13 2 12 10 7 9 6 20 26 16 2 8 10 10 4 2 7 17 12 9 5 38 30 65 6 67 45 Device 373 | 2 1 2 1 . . . 2 10 1 9 7 3 7 5 14 18 13 . 7 10 10 1 2 4 14 12 5 5 31 21 55 5 64 32 Storage 14 | . 2 2 1 . . . . . . . . . 1 . . 2 . . . . . . . . . . 1 . 1 1 2 . . 1 Processor 21 | . . 1 1 1 . . 1 . . . 1 1 . . 3 1 1 . . . . . . 1 . . . . 4 1 . 1 2 1 Hackware 3 | . . . . . . . . . . 1 . 1 . . . . . . . . . . . . . . . . . 1 . . . . Protection 70 | . . 4 2 3 . . 3 3 1 2 2 2 1 1 3 5 2 2 1 . . 3 . 2 3 . 3 . 2 3 5 . 1 11 Artifact 6 | . . . . . . . . . . . . . . . . . . . . . . . . . . . . . . 3 3 . . . Weapon 403 | . 6 42 19 3 1 3 30 15 . 5 2 13 11 1 17 20 5 7 8 4 4 2 3 2 9 7 8 1 11 17 34 4 40 49 Energy Gun 12 | . 1 5 1 . . . . . . . . . 1 . . . . . . . . . . . . . 1 . . . 1 . 2 . Energy Cannon 188 | . 1 5 . . . . 4 . . . 1 2 3 . 6 7 4 5 7 4 2 2 3 1 6 4 3 1 10 13 31 4 30 29 Ballistic Gun 63 | . 2 7 3 . . . 8 8 . . . . 5 1 10 6 . . . . . . . . . . . . . . . . 3 10 Ballistic Cannon 49 | . 1 14 7 2 . 2 6 . . 3 1 5 . . . . . . . . . . . . . . . . . . . . 1 7 Launcher 35 | . . 10 5 . 1 . 1 . . 1 . . . . 1 1 . 1 . . 2 . . 1 3 1 2 . 1 . 1 . . 3 Special Weapon 4 | . 1 1 . . . . . . . . . . . . . . 1 . . . . . . . . . . . . . . . 1 . Impact Weapon 47 | . . . 3 1 . . 11 7 . 1 . 6 2 . . 6 . 1 1 . . . . . . 2 1 . . 4 1 . . . Slashing Weapon 4 | . . . . . . 1 . . . . . . . . . . . . . . . . . . . . . . . . . . 3 . Piercing Weapon 1 | . . . . . . . . . . . . . . . . . . . . . . . . . . . 1 . . . . . . . Special Melee Weapon . | . . . . . . . . . . . . . . . . . . . . . . . . . . . . . . . . . . . Unidentified Prototypes 55 | . . . 2 . . . 1 . . . 2 . 8 . 3 1 1 2 1 . . 3 . . . . 3 . 3 4 4 . 13 4 Corrupted Parts 13 | . . . . . . . . . . . . . 2 1 2 3 . . . . . . . . . . . . . . . . . 5 System Corruption 82 | . . . . . . . . . . . . . 14 6 13 20 . . . . . . . . . . . . . . . . . 29 Parts Lost 63 | . . 1 1 . . . 1 1 . 1 . . . . 2 3 2 . . . . . . . . . 1 . . 1 1 . . 48 Power 13 | . . 1 . . . . . . . . . . . . . . . . . . . . . . . . . . . . . . . 12 Propulsion 15 | . . . . . . . . . . . . . . . . . . . . . . . . . . . . . . . . . . 15 Utility 27 | . . . . . . . 1 1 . 1 . . . . 2 2 2 . . . . . . . . . 1 . . 1 . . . 16 Weapon 8 | . . . 1 . . . . . . . . . . . . 1 . . . . . . . . . . . . . . 1 . . 5 Highest Loss Streak 8 | . . 1 1 . . . 1 1 . 1 . . . . 1 2 1 . . . . . . . . . 1 . . 1 1 . . 8 To Critical Strikes 2 | . . . . . . . . . . . . . . . . . . . . . . . . . . . . . . . . . . 2 Average Slot Usage (%) 77 | . 99 85 97 93 88 88 92 99 98 87 79 87 87 85 81 81 71 67 69 69 70 57 69 72 72 72 72 73 65 59 60 62 66 57 Engine 4 | . 13 13 11 10 11 5 2 5 7 7 13 13 3 . . 1 7 1 . . . . . . . . . . . . . . . . Reactor 5 | . . . . . . . . . . . . . 9 13 13 11 2 8 11 11 11 11 11 10 10 10 9 10 8 4 6 8 8 8 Treads 18 | . 26 28 31 20 11 11 22 36 30 30 26 26 14 13 13 13 17 16 17 17 17 17 17 15 15 15 15 15 14 14 13 16 10 1 Device 10 | . 13 . 3 . . . 8 8 15 7 13 13 12 13 13 13 10 11 11 11 11 11 11 14 14 19 16 21 16 13 13 16 19 10 Storage 5 | . 14 . 10 11 11 11 9 9 7 7 6 6 6 6 6 6 5 5 5 5 5 5 5 5 5 5 8 5 4 4 3 4 4 3 Processor 6 | . . . 9 11 11 11 9 9 7 7 3 6 13 13 11 13 7 5 5 5 5 5 5 5 5 5 5 5 6 9 9 8 8 10 Protection 7 | . . 12 8 11 11 11 8 9 5 8 9 12 13 11 9 11 4 5 5 5 5 4 5 10 10 5 5 5 4 2 2 . . 3 Energy Cannon 3 | . . 1 . . . . . . . . . . 1 . 2 3 9 8 10 10 10 . 10 9 9 9 7 9 8 2 4 4 4 2 Ballistic Gun 4 | . 15 10 10 11 11 11 9 16 15 3 . . 5 13 9 4 . . . . . . . . . . . . . . . . . 1 Ballistic Cannon 3 | . 6 12 9 3 11 7 3 . . 5 6 5 . . . . . . . . . . . . . . . . . . . . . . Naked Turns . | . . . . . . . . . . . . . . . . . . . . . . . . . . . . . . . . . . . Heaviest Build 296 | 12 89 97 101 101 103 103 109 114 127 145 162 163 165 165 166 202 204 224 223 223 220 222 222 238 243 241 241 235 255 271 296 274 277 282 Greatest Support 235 | 20 40 40 60 60 28 28 86 86 86 86 88 96 160 160 160 160 235 235 235 235 235 235 235 235 230 230 230 230 230 225 225 215 230 200 Greatest Overweight (x) 77 | . 2 2 2 3 3 3 3 1 1 1 1 1 1 54 1 2 . 1 . . . . . 1 1 1 1 1 1 77 1 1 2 68 Average Overweight (x) 1 | . 1 . 1 2 3 3 2 1 1 1 1 1 . 10 . . . . . . . . . . 1 1 . 1 1 3 . 1 1 2 Largest Inventory Capacity 30 | 8 25 25 25 25 25 25 25 25 25 25 25 25 25 25 25 30 30 30 30 30 30 30 30 30 30 30 30 30 30 30 30 30 30 30 Average Capacity 24 | 8 20 6 24 25 25 25 25 25 25 25 25 25 25 25 25 25 30 30 30 30 30 30 30 30 30 30 30 30 30 30 29 30 30 30 Most Carried 30 | 6 18 20 25 25 25 25 25 25 24 25 25 25 25 25 25 30 30 30 30 30 30 30 30 30 30 30 30 30 30 30 30 28 30 30 Average Carried 22 | 6 11 5 19 24 24 24 24 24 23 24 24 24 24 25 24 23 29 29 29 29 30 29 29 29 29 29 29 29 29 29 28 27 29 22 Final Capacity 30 | 8 25 25 25 25 25 25 25 25 25 25 25 25 25 25 25 30 30 30 30 30 30 30 30 30 30 30 30 30 30 30 30 30 30 30 Final Carried 30 | 6 18 9 25 25 25 25 25 25 24 25 25 25 25 25 25 30 30 30 30 30 30 30 30 30 30 30 29 30 30 28 29 27 30 22 Class Distribution -------------------- 25% | Hauler-Mutant 22% | Mutant 21% | Scavenger-Mutant 11% | Alien-Mutant 8% | Subdweller-Mutant 5% | Derelict-Mutant Dominant Class ---------------- Mutant | -10/Materials Subdweller-Mutant | -10/Subcaves Mutant | -9/Materials Mutant | -9/Mines Mutant | -9/Exiles Mutant | -8/Mines Mutant | -8/Materials Mutant | -8/Garrison Mutant | -7/Factory Mutant | -7/DSF Mutant | -6/Factory Commander-Mutant | -6/Extension Commander-Mutant | -6/Cetus Scavenger-Mutant | -6/Archives Scavenger-Mutant | -6/Hub_04(d) Scavenger-Mutant | -6/Garrison Scavenger-Mutant | -5/Factory Scavenger-Mutant | -5/Waste Scavenger-Mutant | -5/Factory Hauler-Mutant | -5/Upper Caves Hauler-Mutant | -5/Upper Caves Scavenger-Mutant | -5/Zhirov Hauler-Mutant | -4/Proximity Caves Hauler-Mutant | -4/Factory Hauler-Mutant | -4/Upper Caves Hauler-Mutant | -4/Upper Caves Scavenger-Mutant | -4/Warlord Hauler-Mutant | -3/Proximity Caves Hauler-Mutant | -3/Research Hauler-Mutant | -3/Quarantine Alien-Mutant | -3/Section 7 Alien-Mutant | -2/Research Alien-Mutant | -2/Testing Generator-Mutant | -1/Access Resources | -11 -10 -10 -9 -9 -9 -8 -8 -8 -7 -7 -6 -6 -6 -6 -6 -6 -5 -5 -5 -5 -5 -5 -4 -4 -4 -4 -4 -3 -3 -3 -3 -2 -2 -1 ----------- Run | Jun Mat Sub Mat Min Exi Min Mat Gar Fac DSF Fac Ext Cet Arc Hub Gar Fac Was Fac Upp Upp Zhi Pro Fac Upp Upp War Pro Res Qua Sec Res Tes Acc Matter Collected 25948 | 230 285 1587 850 259 . 281 1099 895 . 541 512 976 395 327 1498 1977 487 160 260 234 259 . 335 104 702 274 254 108 1031 1135 2108 90 1947 4748 Remotely 5977 | . . . . . . . . . . 238 127 169 166 . 502 683 202 . 20 . 180 . . . 235 184 155 . 186 . 987 . 488 1455 Salvage Created 40770 | 84 420 935 799 305 . 490 1388 890 . 401 669 888 188 324 2640 1939 880 262 977 296 611 . 264 686 390 690 350 314 1607 1094 4981 282 3282 11444 Parts 1652 | 5 24 66 63 6 . 39 73 59 . 21 28 36 11 29 106 68 24 . 37 10 17 . 5 26 13 15 12 19 78 57 176 8 144 377 Haulers Intercepted 22 | . 2 . 4 . . . 4 . . . 1 . . . 2 . 1 . 2 . . . . . . . . . . . 2 . . 4 Recyclers Shooed 12 | 1 1 . 1 1 . 1 1 . . . 2 3 . . . . . . . . . . . . . . . . . . . . . 1 Parts Field Recycled . | . . . . . . . . . . . . . . . . . . . . . . . . . . . . . . . . . . . Retrieved Matter . | . . . . . . . . . . . . . . . . . . . . . . . . . . . . . . . . . . . Parts Self-Destructed 78 | . . 22 . . . . . . . . . . . . . . . . . 4 14 . 3 . 11 5 . 19 . . . . . . Prevented 11 | . . . . . . . . . . . . . . . . . . . . 6 . . 2 . 1 2 . . . . . . . . Kills | -11 -10 -10 -9 -9 -9 -8 -8 -8 -7 -7 -6 -6 -6 -6 -6 -6 -5 -5 -5 -5 -5 -5 -4 -4 -4 -4 -4 -3 -3 -3 -3 -2 -2 -1 ------- Run | Jun Mat Sub Mat Min Exi Min Mat Gar Fac DSF Fac Ext Cet Arc Hub Gar Fac Was Fac Upp Upp Zhi Pro Fac Upp Upp War Pro Res Qua Sec Res Tes Acc Combat Hostiles Destroyed 593 | . 6 36 28 4 . 10 23 19 . 11 10 18 1 . 24 23 13 . 14 5 15 . 4 12 8 11 5 7 20 15 58 4 38 151 Melee 2 | . . . . . . 1 1 . . . . . . . . . . . . . . . . . . . . . . . . . . . Guns 134 | . 5 7 10 . . 4 9 19 . 3 . . . . 13 13 . . . . . . . . . . . . . . . . 3 48 Cannons 207 | . 1 13 6 4 . 5 10 . . 6 10 18 . . 4 6 3 . 10 4 4 . . 8 3 3 3 5 13 . 19 . 15 34 AOE 107 | . . 16 12 . . . 2 . . 2 . . . . 5 2 . . 2 . 10 . . 2 2 6 1 . . . 2 1 1 41 Classes Destroyed 30 | 2 4 5 3 . . 2 . 2 . 1 1 . . . 1 . . . 1 1 . . . . . . 1 . . . 3 . 1 2 Worker 25 | . . . 1 1 . 1 2 . . . . . . . 8 . . . 1 . . . . . . . . . . . . . 2 9 Builder 8 | . . . . . . . . . . . 2 . . . . . . . 2 . . . . . . . . . . . . . 1 3 Tunneler 4 | 1 . . . . . 2 . . . . . . . . 1 . . . . . . . . . . . . . . . . . . . Hauler 22 | . 2 . 4 . . . 4 . . . 1 . . . 2 . 1 . 2 . . . . . . . . . . . 2 . . 4 Recycler 22 | 1 1 . 1 2 . 3 3 . . . 1 1 . . 5 . . . . . . . . . . . . . . . 1 . . 3 Carrier 8 | . . . . . . . . . . . . . . . . . . . . . . . . . . . . . . . . . . 8 Mechanic 11 | . . . 1 . . . . . . . . . . . . . . . . . 1 . . . . . . . . . 2 . 1 6 Operator 16 | . 1 . . . . . 1 . . . . 2 . 9 1 . . . . . . . . . . . . . . . 1 . 1 . Turret 1 | . . 1 . . . . . . . . . . . . . . . . . . . . . . . . . . . . . . . . Watcher 31 | . 1 . 3 . . . 3 . . . . . 1 . 3 . 1 . . . . . . 1 . . . . 3 . 4 . 3 8 Swarmer 69 | . . 7 16 . . 6 2 1 . . . 3 . . 4 8 . . . . 2 . 1 2 . . . 4 4 . 3 . 2 4 Saboteur 7 | . . . . . . . . . . . . . . . . . . . . . . . . . . . . . . . 1 . . 6 Grunt 190 | . 6 . 5 4 . 2 10 6 . 7 5 8 . . 5 9 5 . 3 2 7 . . 2 3 4 2 3 3 . 23 . 8 58 Brawler 28 | . . . 1 . . . . . . 2 . . . . 2 . . . . 1 1 . . . . 3 . . . . 6 . 2 10 Duelist 27 | . . . . . . 1 . 4 . . . 1 . . . 1 1 . . . 1 . 2 . . 3 . . . . 1 . 1 11 Protector 10 | . . . . . . . . . . . . . . . 2 . 1 . 1 . . . . . . . . . . . . . 1 5 Researcher 2 | . . . . . . . . . . . . . . . . . . . . . . . . . . . . . . . 1 . 1 . Sentry 60 | . . 1 6 . . . 8 6 . . 3 4 . . 3 5 3 . 1 1 1 . . 3 1 1 . . 4 . 2 . . 7 Specialist 1 | . . . . . . . . 1 . . . . . . . . . . . . . . . . . . . . . . . . . . Hunter 47 | . . . . . . 1 3 . . 1 1 1 . . . . . . 3 . . . . 4 2 . . . 4 . 6 . 8 13 Programmer 76 | . . . . . . . . 1 . . 1 . . . 1 . 3 . 5 . 3 . . . 2 . 2 . 6 . 14 2 14 22 Heavy 3 | . . . . . . . . . . 1 . . . . 1 . . . . . . . . 1 . . . . . . . . . . Q-Series 4 | . . . . . . . . . . . . . . . . . . . . . . . . . . . . . . . . . 1 3 Behemoth 6 | . . . . . . . . . . . . . . . . . . . . 1 . . 1 . . . . . 1 . 1 . . 2 Cetus Guard 1 | . . . . . . . . . . . . . 1 . . . . . . . . . . . . . . . . . . . . . Quarantine Guard 12 | . . . . . . . . . . . . . . . . . . . . . . . . . . . . . . 12 . . . . Enhanced Grunt 1 | . . . . . . . . . . . . . . . 1 . . . . . . . . . . . . . . . . . . . Lightning 9 | . . . . . . . . . . . . . . . 6 . . . . . . . . . . . . . . 3 . . . . Investigator 2 | . . . . . . . . . . . . . . . . . . . . . . . . . . . . . . . . . 1 1 Striker 5 | . . . . . . . . . . . . . . . . . . . . . . . . . . . . . . . . . . 5 Executioner 8 | . . . . . . . . . . . . . . . . . . . . . . . . . . . 1 . . . . 2 . 5 Alpha 7 2 | . . . . . . . . . . . . . . . . . . . . . . . . . . . . . . . 2 . . . Protovariant G 1 | . . . . . . . . . . . . . . . . . . . . . . . . . . . . . . . . . 1 . Protovariant L 1 | . . . . . . . . . . . . . . . . . . . . . . . . . . . . . . . . . 1 . Artisan 2 | . . 2 . . . . . . . . . . . . . . . . . . . . . . . . . . . . . . . . Subdweller 28 | . . 28 . . . . . . . . . . . . . . . . . . . . . . . . . . . . . . . . Surgeon 2 | . . . . . . . . . . . . . . . . . . . . . 1 . . . . . 1 . . . . . . . Wasp 1 | . . . . . . . . . . . . . . . . . . . 1 . . . . . . . . . . . . . . . Savage 1 | . . . . . . . . . . . . 1 . . . . . . . . . . . . . . . . . . . . . . Martyr 1 | . . . . . . . . . . . . . . . . . . . 1 . . . . . . . . . . . . . . . Commander 1 | . . . . . . . . . . . . . . . . . . . . . . . . . . 1 . . . . . . . . Best Kill Streak 27 | 1 4 7 6 2 . 4 4 4 . 4 3 4 2 5 17 7 4 . 7 3 13 . 2 3 2 11 4 4 3 3 9 4 7 27 Combat Bots Only 23 | . 2 6 6 2 . 3 3 4 . 4 2 4 1 . 4 7 4 . 6 3 12 . 2 3 2 11 4 4 3 3 8 4 4 23 Max Kills in Single Turn 13 | 1 2 3 3 1 . 1 2 2 . 1 2 1 1 1 13 2 2 . 3 1 3 . 1 2 1 2 1 1 1 1 2 2 2 4 Gunslinging . | . . . . . . . . . . . . . . . . . . . . . . . . . . . . . . . . . . . Exploded 3 | . . 3 3 . . . 2 . . 1 . . . . 2 2 . . 2 . 3 . . 2 1 2 1 . . . 1 1 1 3 Melee 1 | . . . . . . 1 1 . . . . . . . . . . . . . . . . . . . . . . . . . . . Uniques/NPCs Destroyed 1 | . . . . . . . . . . . . . 1 . . . . . . . . . . . . . . . . . . . . . A7 (-6/Cetus) Combat | -11 -10 -10 -9 -9 -9 -8 -8 -8 -7 -7 -6 -6 -6 -6 -6 -6 -5 -5 -5 -5 -5 -5 -4 -4 -4 -4 -4 -3 -3 -3 -3 -2 -2 -1 -------- Run | Jun Mat Sub Mat Min Exi Min Mat Gar Fac DSF Fac Ext Cet Arc Hub Gar Fac Was Fac Upp Upp Zhi Pro Fac Upp Upp War Pro Res Qua Sec Res Tes Acc Damage Taken 34103 | . 302 1313 530 115 . 338 939 657 . 1032 549 659 154 . 2037 1311 1006 . 474 378 522 . 207 662 346 1096 427 351 772 978 2070 119 1433 13326 Core 2575 | . 34 42 40 17 . 40 98 94 . 41 20 33 40 . 104 70 5 . 8 31 21 . . 34 16 71 9 23 . 173 103 51 278 1079 Absorbed by Shields 11643 | . . . . . . . 324 175 . 257 165 248 57 . 765 520 34 . 151 51 . . . 454 258 260 198 375 669 86 1099 119 1426 3952 Reduced by Siege Mode 676 | . . . . . . . . . . . . . . . 99 72 54 . . 16 . . 21 7 18 106 . 20 52 41 138 . 32 . Redirected to Core 298 | . . . . . . . . . . . . . . . . . . . . . . . . . . . . . . 20 42 . 236 . Redirected to Shielding 180 | . . . . . . . . . . . . . . . . . . . . . . . . 18 20 99 . . . . . . . 43 Ignored by Resistances 5573 | . . . . . . . . . . . . 179 59 . 804 . 279 . 173 . 29 . . . 138 . . . 610 320 821 . 957 1204 Regen/Repaired (Parts) 3896 | . 87 . 172 . . . 68 . 50 . 442 . . . . . . 749 106 148 271 . . 750 . . 371 . . . . . 29 653 Core Remaining (%) 75 | 100 . 69 . . . 75 . 65 . 94 . . . . . 68 . . . . . . 93 . . . . 86 . . 78 . 77 28 Volleys Fired 2523 | 10 29 283 56 10 . 27 71 76 . 40 45 81 35 21 102 165 79 4 42 30 32 . 11 33 47 16 36 16 155 65 248 65 235 358 Largest 2 | 2 2 2 2 2 . 2 2 2 . 2 1 1 2 2 2 2 2 2 2 2 2 . 2 2 2 2 2 2 2 1 1 1 1 2 Hottest 210 | 60 100 119 95 62 . 62 125 61 . 61 90 60 70 70 90 70 210 210 210 210 210 . 210 210 210 210 210 210 210 113 113 113 200 200 Shots Fired 3141 | 20 56 356 101 20 . 51 135 147 . 49 44 84 50 41 159 200 107 7 65 42 39 . 13 59 57 18 52 25 157 68 249 65 236 369 Gun 1075 | 20 39 180 45 10 . 25 71 147 . 18 . . 30 41 122 168 . . . . . . . . . . 1 . . . . . 26 132 Cannon 1975 | . 16 151 46 10 . 26 63 . . 27 44 84 20 . 35 30 105 7 65 42 31 . 13 56 49 15 49 25 157 68 249 65 210 217 Launcher 85 | . . 22 10 . . . 1 . . 4 . . . . 2 2 . . . . 8 . . 3 8 3 2 . . . . . . 20 Special 6 | . 1 3 . . . . . . . . . . . . . . 2 . . . . . . . . . . . . . . . . . Kinetic 1428 | 10 43 216 95 20 . 51 127 147 . 45 43 84 30 41 122 168 . . . . . . . . . . . . . . . . 16 170 Thermal 1142 | 10 13 139 2 . . . . . . . 1 . 1 . 20 . 93 7 54 35 31 . 9 56 45 10 49 25 109 19 126 61 134 93 Explosive 57 | . . . 4 . . . 1 . . 4 . . . . 2 2 . . . . 8 . . 3 8 3 2 . . . . . . 20 Electromagnetic 511 | . . 1 . . . . 7 . . . . . 19 . 15 30 12 . 11 7 . . 4 . 4 5 . . 48 49 123 4 86 86 Entropic 1 | . . . . . . . . . . . . . . . . . . . . . . . . . . . 1 . . . . . . . Robot Hit Streak 43 | 5 7 22 14 11 . 6 22 14 . 14 8 7 19 12 22 43 23 4 15 16 20 . 8 14 15 26 27 5 13 18 32 6 23 38 Robot Miss Streak 5 | 3 3 3 3 2 . 2 3 2 . 2 3 3 3 2 5 2 2 1 2 2 2 . . 1 1 . 1 2 1 2 2 2 2 4 Penetration Max 2 | . . . . . . . 1 1 . . 1 1 1 1 1 . 1 . 1 . . . . . . 1 . . . . 1 1 1 2 Secondary Targets 7 | . . . . . . . . . . . . . . . 4 3 . . . . . . . . . . . . . . . . . . Max Gunslinging Chain 1 | . . . . . . . . . . . . . . . 1 1 . . . . . . . . . . . . . . . . . . Capacitor 862 | . . . . . . . . . . . . . . . . . . . . . . . . . . . . . 155 68 242 65 220 112 Shots Hit Robots 1907 | 10 34 108 68 19 . 36 116 78 . 35 26 40 38 29 104 160 51 5 45 23 14 . 7 38 21 12 23 13 86 36 176 4 155 297 Core Hits 1062 | 3 18 65 39 6 . 22 49 34 . 15 15 23 18 15 80 76 12 . 22 7 32 . 1 22 10 15 10 8 32 12 67 2 62 270 Critical Kills 109 | . . 1 1 1 . . . . . 1 . 1 . 5 9 2 4 1 1 . 1 . 2 2 2 . . 2 . 2 5 1 3 62 Critical Parts Destroyed 107 | . . . . . . . 5 2 . . . . 1 5 12 10 . . 1 . . . . . . . . . . . . . 10 61 Critical Strikes 349 | . 2 2 4 1 . 1 8 2 . 3 3 8 3 10 24 20 6 1 5 1 1 . 4 2 2 . . 2 1 7 31 3 34 158 Burn 1 | . 1 . . . . . . . . . . . . . . . . . . . . . . . . . . . . . . . . . Meltdown 31 | . . 1 . . . . . . . . . . . . . . 4 1 1 . 1 . 2 2 2 . . 2 . 2 5 1 1 6 Destroy 199 | . . . . . . . 2 2 . 1 . . 2 10 21 14 . . . . . . . . . . . . . . . . 17 130 Blast 27 | . 1 1 3 . . 1 3 . . 2 3 7 . . . . . . . . . . . . . . . . . . . . . 6 Corrupt 84 | . . . . . . . . . . . . . 1 . 3 6 2 . 3 1 . . 2 . . . . . 1 5 26 2 16 16 Smash 7 | . . . 1 1 . . 3 . . . . 1 . . . . . . 1 . . . . . . . . . . . . . . . Melee Attacks 96 | . . . 6 3 . 5 29 19 . . . 7 2 . . 13 . 1 5 . . . . . . 1 1 . . 2 1 . 1 . Impact 89 | . . . 6 3 . . 29 19 . . . 7 2 . . 13 . 1 5 . . . . . . 1 . . . 2 1 . . . Slashing 6 | . . . . . . 5 . . . . . . . . . . . . . . . . . . . . . . . . . . 1 . Piercing . | . . . . . . . . . . . . . . . . . . . . . . . . . . . . . . . . . . . Entropic 1 | . . . . . . . . . . . . . . . . . . . . . . . . . . . 1 . . . . . . . Sneak Attacks 29 | . . . 4 3 . 3 9 . . . . 1 2 . . . . 1 5 . . . . . . 1 . . . . . . . . Combat Hostiles . | . . . . . . . . . . . . . . . . . . . . . . . . . . . . . . . . . . . Follow-up Attacks . | . . . . . . . . . . . . . . . . . . . . . . . . . . . . . . . . . . . Damage Inflicted 102768 | 123 553 4239 2557 547 . 748 3319 1864 . 1544 1468 2432 1460 811 5187 4507 2143 218 2613 939 1975 . 275 2238 1570 1780 1442 599 3602 1731 9848 588 7813 32035 Guns 15266 | 123 370 773 645 125 . 294 1072 1864 . 305 . . 624 811 2538 2938 . . . . . . . . . . . . . . . . 503 2281 Cannons 58011 | . 183 1396 636 181 . 219 984 . . 872 1463 2187 387 . 832 655 2143 142 1899 939 309 . 275 1709 927 667 1110 599 3564 1731 9416 423 7074 15089 Explosions 25736 | . . 2017 879 . . . 138 . . 367 . . 310 . 1740 370 . . 394 . 1666 . . 529 643 989 309 . . . 397 165 202 14621 Melee 3197 | . . . 331 230 . 232 1118 . . . . 83 139 . . 544 . 76 320 . . . . . . 124 . . . . . . . . Ramming 558 | . . 53 66 11 . 3 7 . . . 5 162 . . 77 . . . . . . . . . . . 23 . 38 . 35 . 34 44 Kinetic 28335 | 57 440 3886 1484 306 . 513 1927 1864 . 1177 1463 2187 624 811 2538 2938 . . . . . . . . . . . . . . . . 237 5883 Thermal 37079 | 66 113 290 17 . . . . . . . . . 349 . 270 . 1466 142 1611 594 309 . 105 1709 767 398 1110 599 2029 400 3817 169 3348 17401 Explosive 10321 | . . . 659 . . . 138 . . 367 . . . . 285 370 . . . . 1666 . . 529 643 730 309 . . . . 165 202 4258 Electromagnetic 23278 | . . 10 . . . . 129 . . . . . 348 . 2017 655 677 . 682 345 . . 170 . 160 528 . . 1535 1331 5996 254 3992 4449 Impact 2965 | . . . 331 230 . . 1118 . . . . 83 139 . . 544 . 76 320 . . . . . . 124 . . . . . . . . Slashing 232 | . . . . . . 232 . . . . . . . . . . . . . . . . . . . . . . . . . . . . Piercing . | . . . . . . . . . . . . . . . . . . . . . . . . . . . . . . . . . . . Highest Corruption 50 | . . . . . . . . 1 . . 2 2 14 14 30 50 2 . 3 3 3 3 3 . . . 5 5 4 6 3 . 4 46 Average Corruption 7 | . . . . . . . . 1 . . 1 1 7 2 10 34 1 . 2 3 3 3 3 . . . 4 5 3 5 1 . 1 16 Corruption Purged 23 | . . . . . . . . . . . . 2 . 19 . . 2 . . . . . . . . . . . . . . . . . Corruption Blocked 64 | . . . . . . . . . . . . . . . . . . . . . . . . . . . . . . . 15 29 20 . Effects 566 | . . . . . . . . 13 . . 6 40 11 27 41 126 6 . 2 12 18 4 6 . . . 3 23 24 75 15 . 18 96 Message Errors 127 | . . . . . . . . 4 . . 3 10 1 7 7 17 1 . 1 2 3 . 2 . . . . 6 4 19 6 . 2 32 Matter Fused 124 | . . . . . . . . 3 . . . 10 2 11 6 38 . . . 2 3 . 1 . . . 1 5 6 18 . . 3 15 Heat Flow Errors 82 | . . . . . . . . . . . . 5 . 2 6 19 3 . . 4 4 4 2 . . . 1 4 4 10 2 . 1 11 Energy Discharges 66 | . . . . . . . . 3 . . 1 5 2 1 5 11 . . . 3 1 . . . . . . 3 5 10 1 . 5 10 Parts Rejected 4 | . . . . . . . . . . . . . . . 1 2 . . . . . . . . . . . . . . . . . 1 Parts Fused 5 | . . . . . . . . . . . 1 . . . 1 1 . . . . . . . . . . . . . 1 . . . 1 Data Loss (minor) 73 | . . . . . . . . 2 . . . 6 2 1 4 16 . . . . 4 . 1 . . . 1 2 4 11 4 . 4 11 Data Loss (major) 15 | . . . . . . . . . . . . 1 . 2 2 3 1 . . . 1 . . . . . . . . 2 . . 1 2 Misfires 21 | . . . . . . . . . . . . 3 1 . 3 5 . . . . . . . . . . . . 1 3 1 . 1 3 Alerts 14 | . . . . . . . . 1 . . . . 1 2 2 . . . . 1 1 . . . . . . 1 . 1 1 . 1 2 Misdirections 1 | . . . . . . . . . . . . . . . . 1 . . . . . . . . . . . . . . . . . . Weapon Failures 34 | . . . . . . . . . . . 1 . 2 1 4 13 1 . 1 . 1 . . . . . . 2 . . . . . 8 Overload Shots . | . . . . . . . . . . . . . . . . . . . . . . . . . . . . . . . . . . . Overflow Damage 5408 | . . 14 191 82 . 56 335 . . 60 50 66 7 . 39 136 31 . 306 92 44 . . 83 52 118 90 . 57 . 393 11 361 2734 Projectiles 2714 | . . . 1 . . . . . . 50 50 64 . . 21 5 31 . 88 92 13 . . 48 52 35 90 . 57 . 375 9 361 1272 Explosions 1782 | . . 12 71 . . . 21 . . 10 . . . . 18 15 . . 78 . 31 . . 35 . 9 . . . . 18 2 . 1462 Melee 912 | . . 2 119 82 . 56 314 . . . . 2 7 . . 116 . . 140 . . . . . . 74 . . . . . . . . Knockbacks 83 | . 2 11 3 1 . 1 13 . . 3 7 15 2 . 1 . . 2 . . . . . . . 1 . . . . 1 . . 20 Impact 17 | . . 2 1 . . . 5 . . . . 4 1 . 1 . . 1 . . . . . . . 1 . . . . 1 . . . Kinetic 59 | . 2 9 2 1 . 1 5 . . 3 6 10 . . . . . . . . . . . . . . . . . . . . . 20 Secondary 7 | . . . . . . . 3 . . . 1 1 1 . . . . 1 . . . . . . . . . . . . . . . . Self-Inflicted Damage 1072 | . . 35 21 5 . . . . . . . . 50 . 158 . . . . . 43 . . . 30 271 . . . . 51 . 136 272 Shots 19 | . . 2 1 . . . . . . . . . 1 . 2 . . . . . 1 . . . 1 4 . . . . 1 . 1 5 Rammed 55 | . . 16 7 1 . 1 2 . . . 2 15 . . 5 . . . . . . . . . . . 2 . 1 . 1 . 1 1 Targets Rammed 64 | . . 16 10 1 . 1 2 . . . 2 17 . . 5 . . . . . . . . . . . 2 . 1 . 1 . 2 4 Kicked 4 | . . . . . . . . . . . . . . . . . . . . . . . . . . . . . . . . . 1 3 Crushed 5 | . . . 3 . . . . . . . . 2 . . . . . . . . . . . . . . . . . . . . . . Highest Temperature 360 | 20 120 . 154 175 . 105 164 18 . 189 197 266 25 241 288 249 315 138 254 306 228 137 215 66 27 27 56 184 299 360 306 10 176 355 Average Temperature 70 | 20 36 . 39 79 . 42 39 7 . 79 84 86 15 111 84 89 73 58 100 101 38 74 126 19 9 19 12 30 85 85 83 3 11 100 Received Heat Transfer 4514 | . 168 219 144 81 . 54 393 100 . 391 165 182 6 . 262 360 171 . 59 84 190 . 9 57 25 98 12 52 50 36 159 . 36 951 Effects 4 | . . . . . . . . . . . . . . . 1 1 . . . . . . . . . . . . . . 2 . . . Energy Bleed 1 | . . . . . . . . . . . . . . . . 1 . . . . . . . . . . . . . . . . . . Interference 3 | . . . . . . . . . . . . . . . 1 . . . . . . . . . . . . . . . 2 . . . Siege Activations 58 | . . . . . . . . . . . . . . . 5 7 2 . 1 2 2 . 2 3 3 1 . 2 7 4 14 . 3 . Total Turns 765 | . . . . . . . . . . . . . . . 143 106 37 . 4 19 28 . 12 20 35 37 . 32 68 25 171 . 28 . Longest Duration 72 | . . . . . . . . . . . . . . . 72 23 21 . 4 13 24 . 7 14 13 37 . 23 21 10 30 . 11 . Robots Corrupted 118 | . . . . . . . . . . . . . 1 . 3 2 5 . 1 1 . . 2 . 1 2 . . 8 12 35 2 20 23 Combat Hostiles 109 | . . . . . . . . . . . . . 1 . 2 2 5 . 1 1 . . 2 . 1 2 . . 7 12 32 2 18 21 Parts Fried 247 | . . 2 2 2 . . 7 . . . 2 . . . 15 13 7 . 7 2 . . . . 1 6 . . 8 29 65 3 41 35 Impact Corruptions 28 | . . 1 5 3 . . 9 . . . 1 1 1 . . 2 . . 4 . . . . . . 1 . . . . . . . . Robots Melted 35 | . . 1 . . . . . . . . . . . . . . 5 1 1 . 1 . 2 2 2 . 1 2 . 3 5 1 1 7 Combat Hostiles 34 | . . 1 . . . . . . . . . . . . . . 5 1 1 . 1 . 2 2 2 . 1 2 . 3 5 1 1 6 Parts Melted 101 | . . 3 . . . . . . . . . . . . . . 4 1 2 . 2 . 2 8 1 . 8 4 7 8 21 3 10 17 Heat Transferred 28393 | 150 407 444 37 . . . . . . . . . 200 . 200 . 1406 148 1334 592 296 . 111 1332 629 311 851 518 1776 370 3083 64 2812 11322 Parts Sabotaged 5 | . . . . . . . . . . . . . . . . 3 . . . . . . . . . . . . . . . . . 2 Parts Stolen . | . . . . . . . . . . . . . . . . . . . . . . . . . . . . . . . . . . . Parts Stripped . | . . . . . . . . . . . . . . . . . . . . . . . . . . . . . . . . . . . Power Chain Reactions 7 | . . . . . . . . . . . . . 1 . 1 . . . 1 . . . . . . 1 . . . . 3 . . . Missiles Intercepted . | . . . . . . . . . . . . . . . . . . . . . . . . . . . . . . . . . . . Alert | -11 -10 -10 -9 -9 -9 -8 -8 -8 -7 -7 -6 -6 -6 -6 -6 -6 -5 -5 -5 -5 -5 -5 -4 -4 -4 -4 -4 -3 -3 -3 -3 -2 -2 -1 ------- Run | Jun Mat Sub Mat Min Exi Min Mat Gar Fac DSF Fac Ext Cet Arc Hub Gar Fac Was Fac Upp Upp Zhi Pro Fac Upp Upp War Pro Res Qua Sec Res Tes Acc Peak Influence 4673 | 10 106 . 786 281 . 211 492 1267 672 729 638 1327 1228 682 1541 2647 1568 512 829 . . . . 337 . . . . 359 299 1360 787 1191 4673 Initial 1389 | . 6 . 212 281 . . . 319 665 470 382 274 742 472 25 1040 1389 512 218 . . . . . . . . . . 191 95 756 312 714 Average 668 | 6 26 . 412 132 . 46 219 750 667 575 468 646 1008 358 719 1931 1441 459 416 . . . . 115 . . . . 167 158 699 617 498 2721 Maximum Alert Level 5 | . . . 3 1 . 1 2 4 2 3 2 4 4 2 4 5 4 2 3 . . . . 1 . . . . 1 1 4 3 4 5 Low Security (%) 28 | 100 100 . 7 68 . 96 51 . . . . . . 20 7 . . . 1 . . . . 80 . . . . 65 80 13 . . . Level 1 21 | . . . 51 31 . 3 30 8 . . 13 14 . 39 31 . . 26 64 . . . . 19 . . . . 34 19 17 . 54 . Level 2 20 | . . . 24 . . . 17 41 100 80 86 58 . 39 25 . . 73 11 . . . . . . . . . . . 21 69 27 . Level 3 10 | . . . 16 . . . . 34 . 19 . 9 59 . 1 9 . . 22 . . . . . . . . . . . 27 30 11 15 Level 4 10 | . . . . . . . . 15 . . . 17 40 . 34 12 100 . . . . . . . . . . . . . 19 . 6 25 Level 5 4 | . . . . . . . . . . . . . . . . 78 . . . . . . . . . . . . . . . . . . High Security 3 | . . . . . . . . . . . . . . . . . . . . . . . . . . . . . . . . . . 58 Max Security . | . . . . . . . . . . . . . . . . . . . . . . . . . . . . . . . . . . . Sterilizations 2 | . . . . . . . . . . 1 . . . . . . . . . . . . . . . . . . . . . . . 1 Squads Dispatched 121 | . 1 . 1 1 . . 4 . . 1 5 5 . . 12 . 7 . 4 . 1 . . 6 . 1 . . 3 . 16 2 12 39 Investigation 11 | . . . . 1 . . 2 . . . 1 . . . 1 . 1 . . . . . . 2 . . . . . . . . 2 1 Extermination 26 | . . . . . . . . . . . 1 . . . 2 . 2 . 1 . . . . 2 . . . . 2 . 6 . 7 3 Reinforcement 31 | . 1 . 1 . . . 2 . . 1 1 4 . . 5 . 2 . 3 . . . . 2 . . . . 1 . 3 2 . 3 Assault 44 | . . . . . . . . . . . 1 1 . . 1 . 2 . . . 1 . . . . 1 . . . . 7 . 3 27 Garrison 9 | . . . . . . . . . . . 1 . . . 3 . . . . . . . . . . . . . . . . . . 5 Intercept . | . . . . . . . . . . . . . . . . . . . . . . . . . . . . . . . . . . . Searches Triggered . | . . . . . . . . . . . . . . . . . . . . . . . . . . . . . . . . . . . Construction Impeded 2 | . . . . . . . . . . . . . . . 1 . . . 1 . . . . . . . . . . . . . . . Haulers Reinforced 4 | . . . . . . . . . . . . . . . . . . . 1 . . . . . . . . . . . 1 . . 2 Active Scanning Responses 1 | . . . . . . . . . . . 1 . . . . . . . . . . . . . . . . . . . . . . . Cargo Convoy Interrupts 2 | . . . . . . . . . . . 1 . . . . . . . 1 . . . . . . . . . . . . . . . Stealth | -11 -10 -10 -9 -9 -9 -8 -8 -8 -7 -7 -6 -6 -6 -6 -6 -6 -5 -5 -5 -5 -5 -5 -4 -4 -4 -4 -4 -3 -3 -3 -3 -2 -2 -1 --------- Run | Jun Mat Sub Mat Min Exi Min Mat Gar Fac DSF Fac Ext Cet Arc Hub Gar Fac Was Fac Upp Upp Zhi Pro Fac Upp Upp War Pro Res Qua Sec Res Tes Acc Distress Signals 36 | . . . 3 . . . 1 . . . 2 3 2 . 2 . 1 . . . . . . 4 1 . 1 . 1 . 4 7 2 2 Communications Jammed 4 | . . . . . . . . . . . . . . . . . . . . . . . . . . . . . 4 . . . . . Distress Signals 4 | . . . . . . . . . . . . . . . . . . . . . . . . . . . . . 4 . . . . . Times Spotted 883 | . 9 38 40 5 . 13 35 20 . 11 13 45 12 13 49 36 16 . 26 5 20 . 9 26 10 13 35 7 29 9 80 6 45 208 Peak Tracking Total 21 | . 3 4 5 3 . 3 5 4 . 4 5 6 5 2 9 8 5 . 13 3 9 . 5 6 4 8 17 4 4 3 7 6 7 21 Tactical Retreats 41 | . . 2 . . . 3 4 1 . . 1 4 . . 4 1 2 . . . 1 . 1 1 . . . . 1 2 4 . 2 7 Traps | -11 -10 -10 -9 -9 -9 -8 -8 -8 -7 -7 -6 -6 -6 -6 -6 -6 -5 -5 -5 -5 -5 -5 -4 -4 -4 -4 -4 -3 -3 -3 -3 -2 -2 -1 ------- Run | Jun Mat Sub Mat Min Exi Min Mat Gar Fac DSF Fac Ext Cet Arc Hub Gar Fac Was Fac Upp Upp Zhi Pro Fac Upp Upp War Pro Res Qua Sec Res Tes Acc Traps Triggered 36 | . 2 1 . 1 . . 2 6 . . 1 8 . . . 6 1 . . . . . . 1 . . . . 1 2 . . 1 3 Indirectly . | . . . . . . . . . . . . . . . . . . . . . . . . . . . . . . . . . . . Trap Hack Attempts . | . . . . . . . . . . . . . . . . . . . . . . . . . . . . . . . . . . . Triggered . | . . . . . . . . . . . . . . . . . . . . . . . . . . . . . . . . . . . Disarmed . | . . . . . . . . . . . . . . . . . . . . . . . . . . . . . . . . . . . Reprogrammed . | . . . . . . . . . . . . . . . . . . . . . . . . . . . . . . . . . . . Reused . | . . . . . . . . . . . . . . . . . . . . . . . . . . . . . . . . . . . Traps Extracted . | . . . . . . . . . . . . . . . . . . . . . . . . . . . . . . . . . . . Installed . | . . . . . . . . . . . . . . . . . . . . . . . . . . . . . . . . . . . Triggered 17 | . . . . . . . . . . . 2 . . . . . 1 . . . . . . . 1 . 10 1 1 . . . 1 . Most Traps Carried 1 | . . . . . . . . . . . . . . . . 1 . . . . . . . . . . . . . . . . . . Machines | -11 -10 -10 -9 -9 -9 -8 -8 -8 -7 -7 -6 -6 -6 -6 -6 -6 -5 -5 -5 -5 -5 -5 -4 -4 -4 -4 -4 -3 -3 -3 -3 -2 -2 -1 ---------- Run | Jun Mat Sub Mat Min Exi Min Mat Gar Fac DSF Fac Ext Cet Arc Hub Gar Fac Was Fac Upp Upp Zhi Pro Fac Upp Upp War Pro Res Qua Sec Res Tes Acc Machines Disabled 142 | . . 3 4 . . . 4 8 . 1 1 4 2 2 36 9 1 . 3 . 2 . . 1 . 1 2 . 2 4 19 3 21 9 Max in Single Turn 24 | . . 3 1 . . . 1 2 . 1 1 1 . 1 24 2 1 . 2 . 1 . . 1 . 1 1 . 1 1 2 1 1 2 Garrison Access 4 | . . . . . . . . . . . . . . . . . . . 1 . . . . . . . . . . . . 1 . 2 Garrison Relay 9 | . . . . . . . . 5 . . . . . . . 4 . . . . . . . . . . . . . . . . . . Phase Generator 1 | . . . . . . . . . . . . . . . . 1 . . . . . . . . . . . . . . . . . . Network Hub 2 | . . . . . . . . . . . . . . . 2 . . . . . . . . . . . . . . . . . . . Energy Cycler 1 | . . . . . . . . . . . . . . . . . . . . . . . . . . . . . . . . . . 1 Machines Repaired . | . . . . . . . . . . . . . . . . . . . . . . . . . . . . . . . . . . . Machines Sabotaged . | . . . . . . . . . . . . . . . . . . . . . . . . . . . . . . . . . . . Overloaded Fab Kills . | . . . . . . . . . . . . . . . . . . . . . . . . . . . . . . . . . . . Hacking | -11 -10 -10 -9 -9 -9 -8 -8 -8 -7 -7 -6 -6 -6 -6 -6 -6 -5 -5 -5 -5 -5 -5 -4 -4 -4 -4 -4 -3 -3 -3 -3 -2 -2 -1 --------- Run | Jun Mat Sub Mat Min Exi Min Mat Gar Fac DSF Fac Ext Cet Arc Hub Gar Fac Was Fac Upp Upp Zhi Pro Fac Upp Upp War Pro Res Qua Sec Res Tes Acc Machines Accessed 116 | . 8 1 7 2 4 . 9 5 2 . 4 13 1 . 6 3 5 . 6 . . 4 . 7 . 3 3 . 1 11 2 . 6 3 Terminals 70 | . 5 . 5 . . . 3 5 1 . 3 12 1 . 5 3 3 . 4 . . . . 1 . . . . 1 10 2 . 5 1 Fabricators 6 | . . . . . . . . . . . . . . . . . 2 . 1 . . . . 3 . . . . . . . . . . Repair Stations 10 | . 1 . 2 . . . 2 . 1 . 1 . . . . . . . . . . . . 2 . . . . . 1 . . . . Recycling Units 5 | . 2 . . . . . 1 . . . . 1 . . . . . . . . . . . 1 . . . . . . . . . . Scanalyzers 3 | . . . . . . . 2 . . . . . . . . . . . . . . . . . . . . . . . . . 1 . Garrison Access 5 | . . . . . . . 1 . . . . . . . 1 . . . 1 . . . . . . . . . . . . . . 2 Total Hacks 319 | . 23 2 18 2 4 . 16 10 3 . 7 26 2 . 13 9 27 . 23 . . 17 . 34 . 9 11 . 4 27 9 . 18 5 Successful 147 | . 12 2 8 2 4 . 9 3 3 . 4 5 . . 4 2 7 . 8 . . 17 . 17 . 9 11 . 1 9 3 . 5 2 Failed 172 | . 11 . 10 . . . 7 7 . . 3 21 2 . 9 7 20 . 15 . . . . 17 . . . . 3 18 6 . 13 3 Catastrophic 54 | . 1 . 1 . . . 2 3 . . 2 7 1 . 1 2 6 . 3 . . . . 4 . . . . 2 7 3 . 8 1 Database Lockouts . | . . . . . . . . . . . . . . . . . . . . . . . . . . . . . . . . . . . Manual 96 | . 7 1 4 . . . 10 . . . 3 5 1 . 8 . 10 . 5 . . . . 20 . . . . . 9 6 . 7 . Terminals 193 | . 15 . 10 . . . 9 10 1 . 5 25 2 . 12 9 19 . 12 . . . . 8 . . . . 4 25 9 . 16 2 Fabricators 27 | . . . . . . . . . . . . . . . . . 8 . 5 . . . . 14 . . . . . . . . . . Repair Stations 30 | . 3 . 8 . . . 3 . 2 . 2 . . . . . . . . . . . . 10 . . . . . 2 . . . . Recycling Units 9 | . 5 . . . . . 1 . . . . 1 . . . . . . . . . . . 2 . . . . . . . . . . Scanalyzers 4 | . . . . . . . 2 . . . . . . . . . . . . . . . . . . . . . . . . . 2 . Garrison Access 11 | . . . . . . . 1 . . . . . . . 1 . . . 6 . . . . . . . . . . . . . . 3 Terminal Hacks 101 | . 6 2 2 2 4 . 4 3 1 . 2 5 . . 2 2 4 . 5 . . 17 . 4 . 9 11 . 1 9 2 . 3 1 Record 19 | . . 2 . . 4 . . . . . . . . . . . . . . . . 5 . . . 7 . . . 1 . . . . Part Schematic 5 | . . . . . . . 1 . . . . . . . . . . . . . . 4 . . . . . . . . . . . . Robot Analysis 7 | . 1 . . . . . 1 . . . . . . . . . . . . . . 4 . . . . . . . 1 . . . . Prototype ID Bank 17 | . . . 1 . . . . . . . . 1 . . . . . . . . . 4 . . . . 10 . . 1 . . . . Open Door 9 | . . . . 2 . . . 1 . . . 2 . . . . . . . . . . . . . 2 1 . . 1 . . . . Open DSF 2 | . . . . . . . . . 1 . . . . . . . . . 1 . . . . . . . . . . . . . . . Branch Access Points 5 | . . . 1 . . . 1 . . . 1 . . . . . . . 1 . . . . 1 . . . . . . . . . . Emergency Access Points 3 | . . . . . . . . . . . . . . . . 1 . . . . . . . . . . . . . 1 . . . 1 Terminal Index 1 | . . . . . . . . . . . . 1 . . . . . . . . . . . . . . . . . . . . . . Alert Level 3 | . . . . . . . . . . . . . . . . . 1 . . . . . . . . . . . . 1 1 . . . Unreport Threat 4 | . . . . . . . . . . . . 1 . . . . 1 . . . . . . 2 . . . . . . . . . . Locate Traps 10 | . 2 . . . . . 1 . . . . . . . . . 1 . 2 . . . . 1 . . . . 1 . 1 . 1 . Hauler Manifests 2 | . 1 . . . . . . . . . 1 . . . . . . . . . . . . . . . . . . . . . . . Registered Components 1 | . . . . . . . . . . . . . . . . . 1 . . . . . . . . . . . . . . . . . Zone Layout 10 | . 2 . . . . . . . . . . . . . 2 . . . 1 . . . . . . . . . . 3 . . 2 . Garrison Registry 2 | . . . . . . . . 1 . . . . . . . 1 . . . . . . . . . . . . . . . . . . Patrol Navigation 1 | . . . . . . . . 1 . . . . . . . . . . . . . . . . . . . . . . . . . . Fabricator Hacks 3 | . . . . . . . . . . . . . . . . . 1 . 1 . . . . 1 . . . . . . . . . . Network Status 3 | . . . . . . . . . . . . . . . . . 1 . 1 . . . . 1 . . . . . . . . . . Repair Station Hacks 19 | . 2 . 6 . . . 2 . 2 . 2 . . . . . . . . . . . . 5 . . . . . . . . . . Scan Component 11 | . 1 . 3 . . . 1 . 1 . 1 . . . . . . . . . . . . 4 . . . . . . . . . . Repair 8 | . 1 . 3 . . . 1 . 1 . 1 . . . . . . . . . . . . 1 . . . . . . . . . . Recycling Unit Hacks 3 | . 2 . . . . . . . . . . . . . . . . . . . . . . 1 . . . . . . . . . . Retrieve Components 3 | . 2 . . . . . . . . . . . . . . . . . . . . . . 1 . . . . . . . . . . Scanalyzer 1 | . . . . . . . 1 . . . . . . . . . . . . . . . . . . . . . . . . . . . Insert Component 1 | . . . . . . . 1 . . . . . . . . . . . . . . . . . . . . . . . . . . . Garrison Access Hacks 4 | . . . . . . . 1 . . . . . . . 1 . . . 1 . . . . . . . . . . . . . . 1 Unlock Access 2 | . . . . . . . 1 . . . . . . . 1 . . . . . . . . . . . . . . . . . . . Seal Access 2 | . . . . . . . . . . . . . . . . . . . 1 . . . . . . . . . . . . . . 1 Unauthorized Hacks 16 | . 2 . . . . . 1 . . . . . . . 1 . 2 . 1 . . . . 6 . . . . . . 1 . 2 . Terminals 4 | . . . . . . . . . . . . . . . 1 . . . . . . . . . . . . . . . 1 . 2 . Assimilate 1 | . . . . . . . . . . . . . . . . . . . . . . . . . . . . . . . . . 1 . Operators 2 | . . . . . . . . . . . . . . . . . . . . . . . . . . . . . . . 1 . 1 . Sabotage 1 | . . . . . . . . . . . . . . . 1 . . . . . . . . . . . . . . . . . . . Fabricators 8 | . . . . . . . . . . . . . . . . . 2 . 1 . . . . 5 . . . . . . . . . . Liberate 1 | . . . . . . . . . . . . . . . . . . . . . . . . 1 . . . . . . . . . . Fabnet 5 | . . . . . . . . . . . . . . . . . 1 . 1 . . . . 3 . . . . . . . . . . Haulers 2 | . . . . . . . . . . . . . . . . . 1 . . . . . . 1 . . . . . . . . . . Repair Stations . | . . . . . . . . . . . . . . . . . . . . . . . . . . . . . . . . . . . Recycling Units 4 | . 2 . . . . . 1 . . . . . . . . . . . . . . . . 1 . . . . . . . . . . Reject 4 | . 2 . . . . . 1 . . . . . . . . . . . . . . . . 1 . . . . . . . . . . Scanalyzers . | . . . . . . . . . . . . . . . . . . . . . . . . . . . . . . . . . . . Garrison Access . | . . . . . . . . . . . . . . . . . . . . . . . . . . . . . . . . . . . Data Cores Recovered 2 | . . . . . . . . . . . . . . . . . . . 1 . . . . . . . . . . . 1 . . . Used 1 | . . . . . . . . . . . . . . . . . . . . . . . . . . . . . . . 1 . . . Hacking Detections 81 | . 7 . 7 . . . 7 3 2 . 3 11 1 . 5 3 5 . 3 . . . . 5 . . . . 1 9 2 . 5 2 Full Trace Events 6 | . . . . . . . . 1 . . . . . . . 1 1 . . . . . . 2 . . . . . . . . 1 . Feedback Events . | . . . . . . . . . . . . . . . . . . . . . . . . . . . . . . . . . . . Feedback Blocked . | . . . . . . . . . . . . . . . . . . . . . . . . . . . . . . . . . . . Robot Schematics Acquired 2 | . . . . . . . . . . . . . . . . . . . . . . . . . . . . . . . 2 . . . Robots Built . | . . . . . . . . . . . . . . . . . . . . . . . . . . . . . . . . . . . Authchips . | . . . . . . . . . . . . . . . . . . . . . . . . . . . . . . . . . . . Time . | . . . . . . . . . . . . . . . . . . . . . . . . . . . . . . . . . . . Total Robot Build Rating . | . . . . . . . . . . . . . . . . . . . . . . . . . . . . . . . . . . . Part Schematics Acquired 7 | . . . . . . . 1 . . . . . . . . . . . . . . 4 . . . . . . . . . . 2 . Parts Built . | . . . . . . . . . . . . . . . . . . . . . . . . . . . . . . . . . . . Authchips . | . . . . . . . . . . . . . . . . . . . . . . . . . . . . . . . . . . . Time . | . . . . . . . . . . . . . . . . . . . . . . . . . . . . . . . . . . . Total Part Build Rating . | . . . . . . . . . . . . . . . . . . . . . . . . . . . . . . . . . . . Parts Repaired 8 | . 1 . 3 . . . 1 . 1 . 1 . . . . . . . . . . . . 1 . . . . . . . . . . Time 344 | . 26 . 84 . . . 38 . 44 . 44 . . . . . . . . . . . . 108 . . . . . . . . . . Parts Recycled . | . . . . . . . . . . . . . . . . . . . . . . . . . . . . . . . . . . . Recycled Matter . | . . . . . . . . . . . . . . . . . . . . . . . . . . . . . . . . . . . Retrieved Matter . | . . . . . . . . . . . . . . . . . . . . . . . . . . . . . . . . . . . Retrieved Components 6 | . 5 . . . . . . . . . . . . . . . . . . . . . . 1 . . . . . . . . . . Parts Scanalyzed . | . . . . . . . . . . . . . . . . . . . . . . . . . . . . . . . . . . . Part Schematics Acquired . | . . . . . . . . . . . . . . . . . . . . . . . . . . . . . . . . . . . Parts Damaged . | . . . . . . . . . . . . . . . . . . . . . . . . . . . . . . . . . . . Bothacking | -11 -10 -10 -9 -9 -9 -8 -8 -8 -7 -7 -6 -6 -6 -6 -6 -6 -5 -5 -5 -5 -5 -5 -4 -4 -4 -4 -4 -3 -3 -3 -3 -2 -2 -1 ------------ Run | Jun Mat Sub Mat Min Exi Min Mat Gar Fac DSF Fac Ext Cet Arc Hub Gar Fac Was Fac Upp Upp Zhi Pro Fac Upp Upp War Pro Res Qua Sec Res Tes Acc Used RIF Installer . | . . . . . . . . . . . . . . . . . . . . . . . . . . . . . . . . . . . Robots Hacked 31 | . . . . . . . . . . . . . . . . . 1 . . . . . 1 2 . . 6 . 6 . 5 8 2 . Non-combat 1 | . . . . . . . . . . . . . . . . . 1 . . . . . . . . . . . . . . . . . Combat 30 | . . . . . . . . . . . . . . . . . . . . . . . 1 2 . . 6 . 6 . 5 8 2 . Robot Hacks Applied 1 | . . . . . . . . . . . . . . . . . 1 . . . . . . . . . . . . . . . . . find_chute 1 | . . . . . . . . . . . . . . . . . 1 . . . . . . . . . . . . . . . . . Relay Couplers Released 45 | . . . . . . . . 21 . . . . . . . 17 . . . . . . . . . . . . . . . 6 . 1 Machine Destruction 41 | . . . . . . . . 21 . . . . . . . 17 . . . . . . . . . . . . . . . 2 . 1 Programmers 4 | . . . . . . . . . . . . . . . . . . . . . . . . . . . . . . . . 4 . . Fabnet Peak Effective % 11 | . . . . . . . . . . . . . . . . . . . . . . . 6 6 6 6 6 11 11 11 11 3 3 . Autooverrided 30 | . . . . . . . . . . . . . . . . . . . . . . . 1 2 . . 6 . 6 . 5 8 2 . Robots Rewired 23 | . . . . . . . . . . . . 11 . . . 3 . . . . 2 . . . . 2 5 . . . . . . . Allies Hacked 4 | . . . . . . . . . . . . . . . . . . . 3 . 1 . . . . . . . . . . . . . Hacks Repelled . | . . . . . . . . . . . . . . . . . . . . . . . . . . . . . . . . . . . Allies | -11 -10 -10 -9 -9 -9 -8 -8 -8 -7 -7 -6 -6 -6 -6 -6 -6 -5 -5 -5 -5 -5 -5 -4 -4 -4 -4 -4 -3 -3 -3 -3 -2 -2 -1 -------- Run | Jun Mat Sub Mat Min Exi Min Mat Gar Fac DSF Fac Ext Cet Arc Hub Gar Fac Was Fac Upp Upp Zhi Pro Fac Upp Upp War Pro Res Qua Sec Res Tes Acc Total Allies 105 | . . . . 2 . . . 2 . . . 25 5 . . 3 . 20 . . 2 . 1 5 . 2 11 . 6 . 5 8 2 6 Largest Group 20 | . . . . 2 2 . . 2 2 2 . 16 15 11 7 3 . 20 20 3 3 . . 4 . 2 8 . 2 . 1 1 1 6 Highest-Rated Group 834 | . . . . 41 41 . . 51 51 51 . 601 834 576 470 129 . 718 718 78 81 . . 185 . 96 406 . 94 . 82 82 58 85 Highest-Rated Ally 159 | . . . . 31 31 . . 31 31 31 . 159 159 96 96 43 . 50 50 27 29 . . 47 . 49 65 . 64 . 82 82 58 15 Total Orders 14 | . . . . . . . . . . . . . 4 2 3 . . . . . 2 . . . . . 3 . . . . . . . STAY 9 | . . . . . . . . . . . . . 2 1 2 . . . . . 1 . . . . . 3 . . . . . . . FOLLOW 5 | . . . . . . . . . . . . . 2 1 1 . . . . . 1 . . . . . . . . . . . . . Ally Attacks 738 | . . . . 3 . . . 5 . 8 . 167 92 52 46 20 . . 103 . 34 . . 55 . . 56 . 15 . 8 13 3 58 Total Damage 17827 | . . . . 20 . . . 134 . 128 . 3515 2933 1577 1753 532 . . 2645 . 409 . . 1244 . . 1109 . 370 . 51 338 92 977 Kills 118 | . . . . 1 . . . 2 . . . 32 19 4 13 10 . . 13 . 3 . . 8 . . 7 . 2 . . . . 4 Allies Corrupted 6 | . . . . . . . . . . . . 1 . . . . . . 3 . 1 . . . . . . . 1 . . . . . Allies Melted 3 | . . . . . . . . . . . . . . . . . . . . . . . . . . . 1 . . . . 2 . . Intel | -11 -10 -10 -9 -9 -9 -8 -8 -8 -7 -7 -6 -6 -6 -6 -6 -6 -5 -5 -5 -5 -5 -5 -4 -4 -4 -4 -4 -3 -3 -3 -3 -2 -2 -1 ------- Run | Jun Mat Sub Mat Min Exi Min Mat Gar Fac DSF Fac Ext Cet Arc Hub Gar Fac Was Fac Upp Upp Zhi Pro Fac Upp Upp War Pro Res Qua Sec Res Tes Acc Robot Analysis Total 7 | . 1 . . . . . 1 . . . . . . . . . . . . . . 4 . . . . . . . 1 . . . . Derelict Logs Recovered 9 | . . 3 . 1 . . . . . . . . . . . . . . . 1 1 . . . . 3 . . . . . . . . Drone Launches . | . . . . . . . . . . . . . . . . . . . . . . . . . . . . . . . . . . . Drone Recoveries . | . . . . . . . . . . . . . . . . . . . . . . . . . . . . . . . . . . . Exploration | -11 -10 -10 -9 -9 -9 -8 -8 -8 -7 -7 -6 -6 -6 -6 -6 -6 -5 -5 -5 -5 -5 -5 -4 -4 -4 -4 -4 -3 -3 -3 -3 -2 -2 -1 ------------- Run | Jun Mat Sub Mat Min Exi Min Mat Gar Fac DSF Fac Ext Cet Arc Hub Gar Fac Was Fac Upp Upp Zhi Pro Fac Upp Upp War Pro Res Qua Sec Res Tes Acc Turns Passed 59778 | 56 1299 9855 2121 1268 836 1321 1722 1777 178 452 1090 2289 688 2010 1388 2269 1123 541 943 808 1149 245 401 903 1638 1377 1368 911 1703 5378 3303 1305 3422 2641 Spaces Moved 23769 | 19 438 5329 691 564 575 835 741 591 57 129 389 779 245 254 483 822 533 282 446 430 581 141 204 373 593 524 706 348 545 1308 1084 487 1309 934 Core 116 | . . . . . . . . . . . . . . 48 . . . . . . . . . . . . . . . 51 16 . . 1 Treads 19688 | . 400 5329 691 154 . . 157 591 57 129 389 779 245 206 483 822 533 282 446 430 581 141 204 373 593 524 706 348 545 1257 1068 487 725 13 Legs 1410 | 19 38 . . . . . . . . . . . . . . . . . . . . . . . . . . . . . . . 584 769 Wheels 2555 | . . . . 410 575 835 584 . . . . . . . . . . . . . . . . . . . . . . . . . . 151 Hover . | . . . . . . . . . . . . . . . . . . . . . . . . . . . . . . . . . . . Flight . | . . . . . . . . . . . . . . . . . . . . . . . . . . . . . . . . . . . Fastest Speed 50 | 120 120 160 160 145 145 145 145 231 231 231 225 225 160 160 160 160 160 160 160 160 160 160 160 160 240 240 160 240 240 161 50 247 160 111 Average Speed 208 | 120 250 166 247 172 145 145 163 231 231 231 226 226 210 689 204 200 160 160 160 160 160 160 160 189 240 240 167 240 248 386 242 247 209 177 Slowest Speed 3900 | 120 320 340 340 246 145 145 238 231 231 231 231 228 240 2750 240 320 160 240 160 160 160 160 160 240 240 240 240 240 253 3900 253 247 250 3450 Overloaded Moves . | . . . . . . . . . . . . . . . . . . . . . . . . . . . . . . . . . . . Propulsion Burnouts . | . . . . . . . . . . . . . . . . . . . . . . . . . . . . . . . . . . . Robots Hopped . | . . . . . . . . . . . . . . . . . . . . . . . . . . . . . . . . . . . Cave-ins Triggered . | . . . . . . . . . . . . . . . . . . . . . . . . . . . . . . . . . . . Teleports 1 | . . . . . . . . . . . . . . . . . . . . . . . . . . . . . . . . . . 1 Exploration Rate (%) 60 | 3 68 96 67 96 93 102 64 69 2 92 14 84 63 91 54 81 21 95 14 63 73 60 40 12 71 67 90 56 25 96 56 16 92 33 Regions Visited 34 Branch Regions 19 Pre-discovered Areas 8 | . . . . 1 . . . . . . . . . . . . . . . 2 1 3 . . . 1 . . . . . . . . Known Exits Taken 16 | . . 1 1 . . 1 1 . 1 . 1 . . . 1 . . . 1 . . . 1 1 . . . 1 1 1 1 1 1 . Unknown Exits Taken 13 | 1 1 . . 1 1 . . . . . . 1 1 1 . . . . . 1 1 1 . . 1 1 1 . . . . . . . Scrap Searched 25 | . . 7 . 1 . 1 . . . . . . . . . . . . . 2 3 . 2 . 3 4 . 2 . . . . . . Spaces Dug 468 | . 1 140 61 . . . 8 13 . 1 3 15 . . 14 6 29 . 11 6 9 . 1 7 11 2 13 1 30 6 22 31 15 12 Terrain Destroyed 2020 | . 1 343 105 1 . 2 19 17 . 41 23 41 24 16 251 117 43 . 38 18 96 . 6 46 124 66 27 8 58 14 40 83 129 223 Melee 32 | . . . . . . . 8 12 . . . 3 . . . 6 . . . . . . . . . . . . . 2 . . 1 . Projectile 651 | . 1 79 4 1 . 2 2 5 . 7 23 38 21 16 49 5 43 . 19 18 21 . 6 16 29 5 14 8 58 11 37 47 41 25 AOE 1321 | . . 264 101 . . . 9 . . 34 . . 3 . 202 106 . . 19 . 75 . . 30 95 61 13 . . . 2 36 87 184 Terrain Rammed . | . . . . . . . . . . . . . . . . . . . . . . . . . . . . . . . . . . . Walls Destroyed . | . . . . . . . . . . . . . . . . . . . . . . . . . . . . . . . . . . . Machines Disabled . | . . . . . . . . . . . . . . . . . . . . . . . . . . . . . . . . . . . Actions | -11 -10 -10 -9 -9 -9 -8 -8 -8 -7 -7 -6 -6 -6 -6 -6 -6 -5 -5 -5 -5 -5 -5 -4 -4 -4 -4 -4 -3 -3 -3 -3 -2 -2 -1 --------- Run | Jun Mat Sub Mat Min Exi Min Mat Gar Fac DSF Fac Ext Cet Arc Hub Gar Fac Was Fac Upp Upp Zhi Pro Fac Upp Upp War Pro Res Qua Sec Res Tes Acc Total 31382 | 31 581 5933 976 836 577 887 1054 813 104 224 531 1152 368 470 717 1229 698 363 601 507 752 162 267 511 744 621 835 397 885 1631 1744 591 1973 1617 Wait 2452 | . 79 156 143 233 . 7 117 70 44 5 61 33 15 186 44 80 28 37 69 22 115 . 39 82 62 26 19 23 74 146 186 23 151 77 Move 23735 | 18 437 5328 690 563 574 834 740 590 56 128 388 778 244 253 482 821 533 281 445 429 580 140 203 372 592 523 705 347 544 1307 1083 486 1308 933 Hop . | . . . . . . . . . . . . . . . . . . . . . . . . . . . . . . . . . . . Pick Up 364 | . 16 22 24 7 1 1 18 10 1 8 6 4 17 . 17 25 15 3 9 3 . 3 3 6 6 5 3 3 14 11 39 1 41 22 Fast Attach 352 | 2 4 25 13 5 . 2 13 1 1 9 4 11 9 6 7 15 5 11 4 1 . 7 1 4 3 3 7 . 23 19 38 3 45 51 Attach 227 | . 1 6 2 . . 2 6 2 2 5 3 9 . . 10 14 6 3 3 2 . 1 2 3 2 3 3 . 5 15 31 6 15 65 Detach 194 | . . 3 2 1 . 2 2 . . 5 2 7 2 . 7 7 4 2 2 2 . 1 2 2 2 2 4 . 8 18 28 4 22 51 Swap 479 | . 9 30 15 4 1 3 31 26 . 7 10 6 15 1 21 23 13 3 9 11 14 1 2 3 22 13 10 6 28 16 44 1 57 24 Drop 543 | 1 6 40 15 9 1 3 25 11 . 17 8 14 29 3 22 29 15 16 13 7 . 9 4 6 8 8 12 2 33 28 45 2 83 19 Fire 2523 | 10 29 283 56 10 . 27 71 76 . 40 45 81 35 21 102 165 79 4 42 30 32 . 11 33 47 16 36 16 155 65 248 65 235 358 Melee 96 | . . . 6 3 . 5 29 19 . . . 7 2 . . 13 . 1 5 . . . . . . 1 1 . . 2 1 . 1 . Ram 2 | . . . . 1 . . . . . . . . . . . . . . . . . . . . . . . . . . . . . 1 Kick 4 | . . . . . . . . . . . . . . . . . . . . . . . . . . . . . . . . . 1 3 Crush 58 | . . 16 10 . . 1 2 . . . 2 17 . . 5 . . . . . . . . . . . 2 . 1 . 1 . 1 . Escape Stasis 69 | . . . . . . . . 8 . . 2 19 . . . 10 . . . . . . . . . . . . . 4 . . 13 13 Rewire 260 | . . . . . . . . . . . . 166 . . . 27 . 2 . . 11 . . . . 21 33 . . . . . . . Trap . | . . . . . . . . . . . . . . . . . . . . . . . . . . . . . . . . . . . Miscellaneous 24 | . . 24 . . . . . . . . . . . . . . . . . . . . . . . . . . . . . . . . Route ------- -11/Junkyard -10/Materials (discovered 4 exits: *Mat / [*Min x2] / *Sub) -10/Subcaves (discovered 3 exits: *Mat / *Mat / *Rec) -9/Materials (discovered 3 exits: *Mat / *Min / *Sto) -9/Mines (discovered 3 exits: *Mat x2 / *Exi) -9/Exiles (discovered 2 exits: [*Min x2]) -8/Mines (discovered 2 exits: *Mat x2) -8/Materials (discovered 4 exits: *Fac x3 / Gar) -8/Garrison (discovered 3 exits: *Fac x3) -7/Factory -7/DSF -6/Factory (discovered 5 exits: *Fac / *Low x2 / *Ext x2) -6/Extension (discovered 2 exits: *Fac / *Cet) -6/Cetus (discovered 2 exits: *Fac / *Arc) -6/Archives (discovered 3 exits: *Fac / *Hub x2) -6/Hub_04(d) (discovered 4 exits: *Fac x3 / Gar) -6/Garrison (discovered 3 exits: *Fac x3) -5/Factory -5/Waste -5/Factory (discovered 3 exits: *Fac / *Upp x2) -5/Upper Caves -5/Upper Caves (discovered 2 exits: *Fac / *Zhi) -5/Zhirov -4/Proximity Caves -4/Factory (discovered 4 exits: *Res / *Upp x2 / Arm) -4/Upper Caves -4/Upper Caves (discovered 2 exits: *Res / *War) -4/Warlord -3/Proximity Caves -3/Research -3/Quarantine -3/Section 7 -2/Research (discovered 2 exits: *Acc / *Tes) -2/Testing -1/Access To Fleet Rendezvous History --------- Turn | Location | Event 23 | -11/Junkyard | Discovered new exit (range 2) 57 | -11/Junkyard | Entered Materials 331 | -10/Materials | Build established: Mutant 800 | -10/Materials | Derelicts attacked the area 837 | -10/Materials | Discovered new exit (range 15) 863 | -10/Materials | Discovered new exit (range 13) 933 | -10/Materials | Repaired Lgt. Treads 1127 | -10/Materials | Discovered new exit (range 15) 1270 | -10/Materials | Discovered new exit (range 19) 1356 | -10/Materials | Entered Subcaves 1488 | -10/Subcaves | Ambushed by swarm of Subdwellers 1720 | -10/Subcaves | Visited Clippyterm 1752 | -10/Subcaves | Shifting Twisted Machinery released Spk. Treads 1836 | -10/Subcaves | Build established: Subdweller-Mutant 1934 | -10/Subcaves | Shifting Twisted Machinery released Sub. Shrapnel Launcher 2162 | -10/Subcaves | Build established: Mutant 2720 | -10/Subcaves | Build established: Derelict-Mutant 2901 | -10/Subcaves | Shifting Twisted Machinery released Barrage Gun 2928 | -10/Subcaves | Shifting Twisted Machinery released Sub. Shrapnel Launcher 3274 | -10/Subcaves | Discovered new exit (range 9) 3352 | -10/Subcaves | Discovered new exit (range 8) 3507 | -10/Subcaves | Learned Materials terminal intel 3548 | -10/Subcaves | Shifting Twisted Machinery released Mak. Leg 3625 | -10/Subcaves | A swath of the cavern ceiling suddenly collapsed 3773 | -10/Subcaves | Shifting Twisted Machinery released Battle Rifle 3796 | -10/Subcaves | Ambushed by Subdweller buried in earth 4036 | -10/Subcaves | Ambushed by angry Subdweller bent on revenge 4257 | -10/Subcaves | Build established: Subdweller-Mutant 4960 | -10/Subcaves | A swath of the cavern ceiling suddenly collapsed 5030 | -10/Subcaves | Ambushed by Subdweller buried in earth 5169 | -10/Subcaves | Build established: Derelict-Mutant 5218 | -10/Subcaves | Ambushed by angry Subdweller bent on revenge 5439 | -10/Subcaves | Learned Materials interactive machine intel 5442 | -10/Subcaves | Learned Materials emergency access door positions 5580 | -10/Subcaves | Ambushed by Subdweller buried in earth 6135 | -10/Subcaves | Build established: Subdweller-Mutant 7000 | -10/Subcaves | Discovered new exit (range 11) 7164 | -10/Subcaves | Identified exit to Recycling 7704 | -10/Subcaves | Identified exit to Materials 7767 | -10/Subcaves | Identified exit to Materials 9679 | -10/Subcaves | Ambushed by Subdweller buried in earth 10010 | -10/Subcaves | Build established: Derelict-Mutant 10908 | -10/Subcaves | Build established: Mutant 11211 | -10/Subcaves | Entered Materials 11211 | -9/Materials | Evolved 2 slots: Propulsion x1, Utility x1 11213 | -9/Materials | Loaded intel: 18 interactive machine locations 11214 | -9/Materials | Loaded intel: 12 terminal locations 11965 | -9/Materials | Discovered exit to Materials (range 5) 12294 | -9/Materials | Identified exit to Mines 12294 | -9/Materials | Identified exit to Storage 12418 | -9/Materials | Repaired Lgt. Treads 12446 | -9/Materials | Repaired Lgt. Treads 12479 | -9/Materials | Repaired Hrd. Light Armor Plating 13332 | -9/Materials | Entered Mines 13446 | -9/Mines | Found a damaged Exp. Sensor Array with a note attached 13451 | -9/Mines | Found Prototype Device 13573 | -9/Mines | Discovered exit to Materials (range 7) 13679 | -9/Mines | Met a Derelict who couldn't figure out how to use a Trap Extractor 14054 | -9/Mines | Found a hidden stash of uninstalled traps 14246 | -9/Mines | Received a Rocket Launcher from a helpful Derelict 14261 | -9/Mines | Discovered exit to Materials (range 5) 14343 | -9/Mines | Deemed a non-threat by the Exiles lab entrance 14344 | -9/Mines | Discovered new exit (range 5) 14470 | -9/Mines | Met a Derelict shopkeep closing up shop 14600 | -9/Mines | Entered Exiles 14600 | -9/Exiles | Found Exiles lab abandoned 14600 | -9/Exiles | Accompanied by 2 allies 14619 | -9/Exiles | Discovered new exit (range 15) 14630 | -9/Exiles | Led the pair of lost Derelicts to a safe place 15285 | -9/Exiles | Discovered new exit (range 14) 15436 | -9/Exiles | Entered Mines 15893 | -8/Mines | Discovered exit to Materials (range 10) 16140 | -8/Mines | Discovered exit to Materials (range 8) 16757 | -8/Mines | Entered Materials 16757 | -8/Materials | Evolved 2 slots: Propulsion x1, Utility x1 17254 | -8/Materials | Identified Exp. Sensor Array 17580 | -8/Materials | Repaired Nuclear Core 17596 | -8/Materials | Discovered new exit (range 4) 18007 | -8/Materials | Discovered new exit (range 4) 18239 | -8/Materials | Discovered new exit (range 5) 18384 | -8/Materials | Identified exit to Garrison 18479 | -8/Materials | Entered Garrison 18749 | -8/Garrison | Found Powered Armor 18755 | -8/Garrison | Found Powered Armor 18758 | -8/Garrison | Found Powered Armor 18761 | -8/Garrison | Found Powered Armor 18918 | -8/Garrison | Triggered checkpoint 19081 | -8/Garrison | Discovered new exit (range 14) 19081 | -8/Garrison | Discovered new exit (range 55) 19081 | -8/Garrison | Discovered new exit (range 71) 19236 | -8/Garrison | Triggered checkpoint 19364 | -8/Garrison | Triggered checkpoint 19446 | -8/Garrison | Triggered checkpoint 19618 | -8/Garrison | Garrison Relay disabled 19668 | -8/Garrison | Triggered checkpoint 19942 | -8/Garrison | Triggered checkpoint 19979 | -8/Garrison | Garrison Relay disabled 20099 | -8/Garrison | Rescued a captive Derelict 20100 | -8/Garrison | Rescued a captive Derelict 20256 | -8/Garrison | Entered Factory 20256 | -7/Factory | Accompanied by 2 allies 20256 | -7/Factory | Evolved 2 slots: Power x1, Utility x1 20316 | -7/Factory | Repaired Powered Armor 20400 | -7/Factory | Identified exit to DSF 20434 | -7/Factory | Entered DSF 20434 | -7/DSF | Accompanied by 2 allies 20488 | -7/DSF | Additional patrols routed to DSF 20549 | -7/DSF | Found Prototype Device 20671 | -7/DSF | Discovered new exit (range 14) 20825 | -7/DSF | Sterilization system engaged 20845 | -7/DSF | Ambient heat levels rising (+10) 20860 | -7/DSF | Ambient heat levels rising (+10) 20875 | -7/DSF | Ambient heat levels rising (+10) 20886 | -7/DSF | Entered Factory 20886 | -6/Factory | Evolved 2 slots: Utility x2 20887 | -6/Factory | Identified Active Sensor Suite 21209 | -6/Factory | Build established: Scavenger-Skirmisher 21314 | -6/Factory | Repaired Hrd. Heavy Armor Plating 21386 | -6/Factory | Identified exit to Lower Caves 21386 | -6/Factory | Identified exit to Extension 21649 | -6/Factory | Discovered new exit (range 5) 21713 | -6/Factory | Build established: Mutant 21911 | -6/Factory | Garrison activated, responded to threat 21936 | -6/Factory | First assault squad dispatched 21970 | -6/Factory | Cargo convoy interrupted 21976 | -6/Factory | Entered Extension 22655 | -6/Extension | Rescued A7 22691 | -6/Extension | Rescued a captive Derelict 22691 | -6/Extension | Rescued a captive Derelict 22755 | -6/Extension | Rescued a captive Derelict 22783 | -6/Extension | Rescued a captive Derelict 22900 | -6/Extension | Rescued a captive Derelict 22905 | -6/Extension | Rescued a captive Derelict 22924 | -6/Extension | Build established: Commander-Mutant 22961 | -6/Extension | Rescued a captive Derelict 23375 | -6/Extension | Spotted B-75 Beast 23376 | -6/Extension | First assault squad dispatched 23383 | -6/Extension | Allies destroyed B-75 Beast 23503 | -6/Extension | Rescued a captive Derelict 23504 | -6/Extension | Rescued a captive Derelict 23566 | -6/Extension | Rescued a captive Derelict 23671 | -6/Extension | Build established: Scavenger-Mutant 23793 | -6/Extension | Rescued a captive Derelict 23881 | -6/Extension | Rescued a captive Derelict 24151 | -6/Extension | Disrupted transfer network 24167 | -6/Extension | Rescued a captive Derelict 24223 | -6/Extension | Discovered new exit (range 10) 24226 | -6/Extension | Discovered new exit (range 6) 24265 | -6/Extension | Entered Cetus 24265 | -6/Cetus | Accompanied by 15 allies (A7) 24270 | -6/Cetus | Acquired a Cetus Manufacturing Module code from A7 24293 | -6/Cetus | Spotted Cetus Guard 24293 | -6/Cetus | Spotted Cetus Guard 24294 | -6/Cetus | Spotted Cetus Guard 24294 | -6/Cetus | Spotted Cetus Guard 24303 | -6/Cetus | Allies destroyed Cetus Guard 24308 | -6/Cetus | Allies destroyed Cetus Guard 24309 | -6/Cetus | Allies destroyed Cetus Guard 24311 | -6/Cetus | Allies destroyed Cetus Guard 24430 | -6/Cetus | Started Cetus Manufacturing Module 24454 | -6/Cetus | Discovered new exit (range 15) 24455 | -6/Cetus | Manufactured an Enhanced Grunt 24480 | -6/Cetus | Manufactured an Enhanced Grunt 24505 | -6/Cetus | Manufactured an Enhanced Grunt 24508 | -6/Cetus | Spotted Cetus Guard 24508 | -6/Cetus | Spotted Cetus Guard 24511 | -6/Cetus | Destroyed Cetus Guard 24511 | -6/Cetus | Spotted Cetus Guard 24520 | -6/Cetus | Allies destroyed Cetus Guard 24520 | -6/Cetus | Spotted Cetus Guard 24521 | -6/Cetus | Allies destroyed Cetus Guard 24527 | -6/Cetus | Allies destroyed Cetus Guard 24530 | -6/Cetus | Manufactured an Enhanced Grunt 24540 | -6/Cetus | Discovered new exit (range 16) 24548 | -6/Cetus | Met Revision 17 24555 | -6/Cetus | Manufactured an Enhanced Grunt 24716 | -6/Cetus | Found Prototype Device 24717 | -6/Cetus | Identified Exp. Thermal Shield 24779 | -6/Cetus | Build established: Commander-Mutant 24802 | -6/Cetus | System corruption reached 10% 24862 | -6/Cetus | Destroyed A7 24865 | -6/Cetus | Extracted ID and sensor layout for unrecognized location from A7's data core 24953 | -6/Cetus | Entered Archives 24953 | -6/Archives | Accompanied by 11 allies 25033 | -6/Archives | Unable to access archive contents 25125 | -6/Archives | Discovered new exit (range 15) 25271 | -6/Archives | Discovered new exit (range 14) 25282 | -6/Archives | Build established: Scavenger-Mutant 25514 | -6/Archives | Discovered new exit (range 16) 26963 | -6/Archives | Entered Hub_04(d) 26963 | -6/Hub_04(d) | Accompanied by 7 allies 27073 | -6/Hub_04(d) | Discovered new exit (range 15) 27123 | -6/Hub_04(d) | Found Active Sensor Suite 27291 | -6/Hub_04(d) | Discovered new exit (range 12) 27502 | -6/Hub_04(d) | Discovered new exit (range 5) 27505 | -6/Hub_04(d) | Garrison activated, responded to threat 27551 | -6/Hub_04(d) | Identified exit to Garrison 27798 | -6/Hub_04(d) | Network Hub disabled 27825 | -6/Hub_04(d) | Spotted Lightning 27832 | -6/Hub_04(d) | Spotted Lightning 27832 | -6/Hub_04(d) | Spotted Lightning 27832 | -6/Hub_04(d) | Destroyed Lightning 27855 | -6/Hub_04(d) | Network Hub disabled 27855 | -6/Hub_04(d) | Destroyed Lightning 27861 | -6/Hub_04(d) | Destroyed Lightning 27876 | -6/Hub_04(d) | Found Corrupted Prototype Energy Cannon 27882 | -6/Hub_04(d) | Disrupted transfer network 27882 | -6/Hub_04(d) | Found Corrupted Prototype Processor 27890 | -6/Hub_04(d) | Found Prototype Device 27891 | -6/Hub_04(d) | Identified Exp. EM Disruption Field 27893 | -6/Hub_04(d) | Identified Exp. Targeting Computer 27896 | -6/Hub_04(d) | Spotted Lightning 27900 | -6/Hub_04(d) | Spotted Lightning 27901 | -6/Hub_04(d) | Spotted Lightning 27905 | -6/Hub_04(d) | Destroyed Lightning 27942 | -6/Hub_04(d) | Destroyed Lightning 27956 | -6/Hub_04(d) | Identified EMDS 27990 | -6/Hub_04(d) | Destroyed Lightning 28007 | -6/Hub_04(d) | Found EMDS 28010 | -6/Hub_04(d) | Found Exp. Targeting Computer 28013 | -6/Hub_04(d) | First assault squad dispatched 28013 | -6/Hub_04(d) | Found EMDS 28018 | -6/Hub_04(d) | Found EMDS 28066 | -6/Hub_04(d) | System corruption reached 30% 28128 | -6/Hub_04(d) | Found Exp. Targeting Computer 28139 | -6/Hub_04(d) | Found Exp. EM Disruption Field 28144 | -6/Hub_04(d) | Found Exp. Targeting Computer 28351 | -6/Hub_04(d) | Entered Garrison 28376 | -6/Garrison | Triggered checkpoint 28538 | -6/Garrison | Triggered checkpoint 28561 | -6/Garrison | Garrison Relay disabled 28636 | -6/Garrison | Triggered checkpoint 28656 | -6/Garrison | Triggered checkpoint 28726 | -6/Garrison | Destroyed 7 combat bots 28848 | -6/Garrison | Triggered checkpoint 28874 | -6/Garrison | Garrison Relay disabled 28961 | -6/Garrison | Discovered new exit (range 13) 29001 | -6/Garrison | Phase Generator disabled 29358 | -6/Garrison | Triggered checkpoint 29448 | -6/Garrison | Triggered checkpoint 29486 | -6/Garrison | Garrison Relay disabled 29527 | -6/Garrison | Discovered new exit (range 8) 29578 | -6/Garrison | Spotted B-75 Beast 29779 | -6/Garrison | Discovered new exit (range 9) 29779 | -6/Garrison | Discovered new exit (range 47) 29779 | -6/Garrison | Discovered new exit (range 51) 29819 | -6/Garrison | Triggered checkpoint 30620 | -6/Garrison | Entered Factory 30620 | -5/Factory | Evolved 2 slots: Propulsion x2 31183 | -5/Factory | Discovered new exit (range 7) 31220 | -5/Factory | First assault squad dispatched 31466 | -5/Factory | Identified exit to Factory 31743 | -5/Factory | Sucked down chute 31743 | -5/Factory | Entered Waste 31744 | -5/Waste | Joined by Warlord forces that had cleared the area 31941 | -5/Waste | Found Prototype Protection 31941 | -5/Waste | Identified Centrium Heavy Armor Plating 31977 | -5/Waste | Found Broken Gamma Bomb Array 32173 | -5/Waste | Discovered new exit (range 16) 32284 | -5/Waste | Entered Factory 32284 | -5/Factory | Accompanied by 20 allies 32410 | -5/Factory | Discovered exit to Factory (range 11) 32844 | -5/Factory | Identified exit to Upper Caves 32898 | -5/Factory | Cargo convoy interrupted 33227 | -5/Factory | Entered Upper Caves 33227 | -5/Upper Caves | Accompanied by 3 allies 33229 | -5/Upper Caves | Attracted the attention of an 0b10 checkpoint 33254 | -5/Upper Caves | Met a Warlord Commander 33255 | -5/Upper Caves | Learned location of Warlord (-4) 33257 | -5/Upper Caves | Found Encrypted Comm Array 33273 | -5/Upper Caves | Learned location of Armory (-4) 33455 | -5/Upper Caves | Spotted B-75 Beast 33462 | -5/Upper Caves | Destroyed B-75 Beast 33916 | -5/Upper Caves | Build established: Hauler-Mutant 34001 | -5/Upper Caves | Discovered new exit (range 13) 34035 | -5/Upper Caves | Entered another Upper Caves area 34035 | -5/Upper Caves | Accompanied by 2 allies 34087 | -5/Upper Caves | Attracted the attention of an 0b10 outpost 34142 | -5/Upper Caves | Destroyed 12 combat bots 34263 | -5/Upper Caves | Discovered exit to Factory (range 14) 34551 | -5/Upper Caves | Encountered a Warlord checkpoint 35141 | -5/Upper Caves | Discovered new exit (range 11) 35184 | -5/Upper Caves | Entered Zhirov 35185 | -5/Zhirov | Discovered new exit (range 4) 35214 | -5/Zhirov | Met Zhirov 35246 | -5/Zhirov | Learned location of Quarantine (-3) 35246 | -5/Zhirov | Learned location of Testing (-2) 35246 | -5/Zhirov | Learned location of Command (-1) 35261 | -5/Zhirov | Zhirov requested help retrieving the SGEMP Prototype 35285 | -5/Zhirov | Found Alien Artifact 35285 | -5/Zhirov | Identified Integrated Dissipator 35285 | -5/Zhirov | Installed Integrated Dissipator, increased core heat dissipation (+20) 35355 | -5/Zhirov | Found Alien Artifact 35429 | -5/Zhirov | Entered Proximity Caves 35527 | -4/Proximity Caves | Spotted B-86 Titan 35529 | -4/Proximity Caves | Destroyed B-86 Titan 35809 | -4/Proximity Caves | Discovered exit to Factory (range 12) 35830 | -4/Proximity Caves | Entered Factory 35830 | -4/Factory | Evolved 2 slots: Utility x2 35998 | -4/Factory | Allied Derelicts emerged from ambush trap array 36151 | -4/Factory | Repaired Centrium Heavy Armor Plating? 36222 | -4/Factory | Found Quantum Capacitor 36293 | -4/Factory | Discovered new exit (range 16) 36295 | -4/Factory | Identified exit to Upper Caves 36295 | -4/Factory | Identified exit to Armory 36733 | -4/Factory | Entered Upper Caves 38361 | -4/Upper Caves | Discovered new exit (range 5) 38370 | -4/Upper Caves | Ambushed by wild Derelicts 38371 | -4/Upper Caves | Entered another Upper Caves area 38485 | -4/Upper Caves | Discovered new exit (range 7) 38514 | -4/Upper Caves | Attracted the attention of an 0b10 outpost 38558 | -4/Upper Caves | Destroyed 11 combat bots 38608 | -4/Upper Caves | Learned Research terminal intel 38815 | -4/Upper Caves | Learned Armory garrison access intel 38815 | -4/Upper Caves | Learned Research emergency access door positions 38815 | -4/Upper Caves | Learned Extension trap positions 38841 | -4/Upper Caves | Destroyed 2T-0MU(g) 39409 | -4/Upper Caves | Discovered new exit (range 16) 39614 | -4/Upper Caves | Learned Research terminal intel 39748 | -4/Upper Caves | Entered Warlord 39748 | -4/Warlord | Accompanied by 2 allies 40108 | -4/Warlord | Build established: Scavenger-Mutant 40397 | -4/Warlord | Received a Watcher feed algorithm from an ecstatic Tinkerer 40569 | -4/Warlord | Visited the Vortex Lab 40581 | -4/Warlord | Warlord's base attacked by MAIN.C 40581 | -4/Warlord | Found Prototype Piercing Weapon 40588 | -4/Warlord | Met EX-DEC 40598 | -4/Warlord | Found Prototype Energy Gun 40612 | -4/Warlord | Identified Vortex Shotgun 40700 | -4/Warlord | Met Warlord 40713 | -4/Warlord | Identified Vortex Lance 40724 | -4/Warlord | Found Prototype Reactor 40724 | -4/Warlord | Identified Vortex Chain Reactor 40851 | -4/Warlord | Spotted B-86 Titan 40931 | -4/Warlord | Warlord forces counterattacked 40931 | -4/Warlord | Spotted Striker 40936 | -4/Warlord | Spotted Executioner 41006 | -4/Warlord | Spotted Executioner 41025 | -4/Warlord | Destroyed Executioner 41049 | -4/Warlord | Spotted Striker 41095 | -4/Warlord | Discovered new exit (range 15) 41116 | -4/Warlord | Entered Proximity Caves 41117 | -3/Proximity Caves | Identified exit to Research 41194 | -3/Proximity Caves | Build established: Hauler-Mutant 42027 | -3/Proximity Caves | Entered Research 42027 | -3/Research | Evolved 2 slots: Power x1, Utility x1 42029 | -3/Research | Loaded intel: 23 terminal locations 42096 | -3/Research | Spotted B-86 Titan 42113 | -3/Research | Destroyed B-86 Titan 42175 | -3/Research | Local machine network offline 42182 | -3/Research | Found Centrium Heavy Armor Plating 42793 | -3/Research | Found Unknown Launcher 42793 | -3/Research | Identified Fusion Bomb Launcher 43610 | -3/Research | Found Quantum Capacitor 43698 | -3/Research | Discovered new exit (range 5) 43708 | -3/Research | Identified exit to Quarantine 43730 | -3/Research | Entered Quarantine 43733 | -3/Quarantine | Cryocooling Duct disabled 43741 | -3/Quarantine | Cryocooling Duct disabled 43748 | -3/Quarantine | Ambient heat levels rising (+20) 43748 | -3/Quarantine | Non-combat units ordered to evacuate 43756 | -3/Quarantine | Ambient heat levels rising (+20) 43756 | -3/Quarantine | Combat units ordered to evacuate 43856 | -3/Quarantine | Quarantine Guard activated 44064 | -3/Quarantine | Spotted Quarantine Guard 44072 | -3/Quarantine | Destroyed Quarantine Guard 44128 | -3/Quarantine | Destroyed Quarantine Guard 44662 | -3/Quarantine | Destroyed Quarantine Guard 44676 | -3/Quarantine | Destroyed Quarantine Guard 44799 | -3/Quarantine | Spotted Quarantine Guard 44888 | -3/Quarantine | Destroyed Quarantine Guard 45016 | -3/Quarantine | Met incapacitated Sigix Warrior 45016 | -3/Quarantine | Lockdown squad dispatched 45024 | -3/Quarantine | Acquired the access code to the Sigix quarantine chamber 45029 | -3/Quarantine | Unlocked Sigix quarantine chamber 45117 | -3/Quarantine | Spotted Lightning 45117 | -3/Quarantine | Spotted Lightning 45120 | -3/Quarantine | Spotted Lightning 45122 | -3/Quarantine | Destroyed Lightning 45128 | -3/Quarantine | Destroyed Lightning 45131 | -3/Quarantine | Destroyed Lightning 45161 | -3/Quarantine | Found EMDS 45167 | -3/Quarantine | Found Exp. Targeting Computer 45174 | -3/Quarantine | Found Prototype Device 45180 | -3/Quarantine | Identified Exp. Phase Shifter 45252 | -3/Quarantine | Spotted Quarantine Guard 45257 | -3/Quarantine | Destroyed Quarantine Guard 45455 | -3/Quarantine | Destroyed Quarantine Guard 45517 | -3/Quarantine | Found Alien Artifact 45517 | -3/Quarantine | Identified Phase Armor 45875 | -3/Quarantine | Destroyed Quarantine Guard 46243 | -3/Quarantine | Destroyed Quarantine Guard 46265 | -3/Quarantine | Discovered new exit (range 15) 46265 | -3/Quarantine | Spotted Quarantine Guard 46284 | -3/Quarantine | Destroyed Quarantine Guard 46403 | -3/Quarantine | Found Quantum Capacitor 46489 | -3/Quarantine | Spotted Quarantine Guard 46636 | -3/Quarantine | Destroyed Quarantine Guard 46709 | -3/Quarantine | Found Alien Artifact 46785 | -3/Quarantine | Found Alien Artifact 46785 | -3/Quarantine | Identified Core Reset Matrix 46785 | -3/Quarantine | Identified Transdimensional Reconstructor 46785 | -3/Quarantine | Identified Subatomic Replicator 46785 | -3/Quarantine | Used Core Reset Matrix 46789 | -3/Quarantine | Sensed 2 artifacts in vicinity 46973 | -3/Quarantine | Spotted Fortress 47084 | -3/Quarantine | Discovered new exit (range 5) 47084 | -3/Quarantine | Spotted Quarantine Guard 47099 | -3/Quarantine | Destroyed Quarantine Guard 49105 | -3/Quarantine | Identified exit to Section 7 49108 | -3/Quarantine | Entered Section 7 49109 | -3/Section 7 | Sensed 21 artifacts in vicinity 49247 | -3/Section 7 | Found Integrated Reactor 49247 | -3/Section 7 | Installed Integrated Reactor, increased core energy generation (+10) 49638 | -3/Section 7 | Local machine network offline 49659 | -3/Section 7 | Found Integrated Reactor 49659 | -3/Section 7 | Installed Integrated Reactor, increased core energy generation (+10) 49820 | -3/Section 7 | Found Integrated Mediator 49820 | -3/Section 7 | Installed Integrated Mediator, increased core attachment efficiency. 49995 | -3/Section 7 | Found Prototype Device 50001 | -3/Section 7 | Identified Exp. ECM Suite 50073 | -3/Section 7 | Found Integrated Dissipator 50073 | -3/Section 7 | Installed Integrated Dissipator, increased core heat dissipation (+20) 50258 | -3/Section 7 | Discovered new exit (range 16) 50363 | -3/Section 7 | Build established: Alien-Mutant 50501 | -3/Section 7 | Found Core Reset Matrix 50588 | -3/Section 7 | Spotted Alpha 7 50594 | -3/Section 7 | Spotted Alpha 7 50596 | -3/Section 7 | Destroyed Alpha 7 50617 | -3/Section 7 | Destroyed Alpha 7 50858 | -3/Section 7 | First assault squad dispatched 50883 | -3/Section 7 | Spotted B-99 Colossus 50973 | -3/Section 7 | Destroyed 8 combat bots 51030 | -3/Section 7 | Found Core Expander 51030 | -3/Section 7 | Installed Core Expander, added new Propulsion slot 51272 | -3/Section 7 | Found Core Reset Matrix 51274 | -3/Section 7 | Sensed 14 artifacts in vicinity 51394 | -3/Section 7 | Destroyed B-99 Colossus 52362 | -3/Section 7 | Discovered new exit (range 6) 52372 | -3/Section 7 | Identified exit to Research 52386 | -3/Section 7 | Found Prototype Launcher 52386 | -3/Section 7 | Identified Mni. Smartbomb Launcher 52411 | -3/Section 7 | Entered Research 52411 | -2/Research | Warlord forces began assault on 0b10 52411 | -2/Research | Evolved 2 slots: Utility x2 52436 | -2/Research | Distinguished unit "Lair Dwellers" dispatched to help 52436 | -2/Research | Distinguished unit "Smaug Mourners" dispatched to help 52521 | -2/Research | Research machine network offline 52717 | -2/Research | Met up with Warlord 53015 | -2/Research | Borebot progress halted 53222 | -2/Research | Spotted Striker 53322 | -2/Research | Discovered new exit (range 7) 53335 | -2/Research | Identified exit to Access 53412 | -2/Research | Warlord invited to help at Command 53456 | -2/Research | Spotted Executioner 53465 | -2/Research | Destroyed Executioner 53466 | -2/Research | Destroyed Executioner 53482 | -2/Research | Discovered new exit (range 15) 53517 | -2/Research | Identified exit to Testing 53716 | -2/Research | Entered Testing 53745 | -2/Testing | Protovariant out of control (PL-XYEFKJT2CJ) 53747 | -2/Testing | Spotted PL-XYEFKJT2CJ 53759 | -2/Testing | Destroyed PL-XYEFKJT2CJ 53774 | -2/Testing | Found Prototype Slashing Weapon 53774 | -2/Testing | Identified Nanosword 53830 | -2/Testing | Found Prototype Energy Cannon 53830 | -2/Testing | Identified Imp. Potential Cannon 53835 | -2/Testing | Found Prototype Energy Cannon 53850 | -2/Testing | Identified Potential Cannon 54101 | -2/Testing | Found Prototype Device 54130 | -2/Testing | Identified Beam Splitter 54377 | -2/Testing | Found Prototype Device 54389 | -2/Testing | Identified Exp. ECM Suite 54549 | -2/Testing | Found Prototype Energy Gun 54549 | -2/Testing | Identified Warp Gun 54675 | -2/Testing | Found Prototype Device 54699 | -2/Testing | Identified Exp. Shock Absorption System 54880 | -2/Testing | Found Prototype Device 54888 | -2/Testing | Identified Exp. Force Field 54934 | -2/Testing | Found Quantum Capacitor 54990 | -2/Testing | Found Prototype Energy Cannon 54990 | -2/Testing | Identified Null Cannon 55067 | -2/Testing | Found Prototype Processor 55095 | -2/Testing | Identified Exp. Signal Interpreter 55332 | -2/Testing | Found Prototype Device 55332 | -2/Testing | Identified AEGIS Remote Shield 55362 | -2/Testing | Spotted PG-J7N8LYL0TE 55430 | -2/Testing | Found Prototype Ballistic Gun 55430 | -2/Testing | Identified Hyp. Multirail 55475 | -2/Testing | Found Prototype Device 55475 | -2/Testing | Identified Exp. Hardlight Generator 55547 | -2/Testing | Found Prototype Energy Cannon 55547 | -2/Testing | Identified Disintegrator 55614 | -2/Testing | Destroyed PG-J7N8LYL0TE 55685 | -2/Testing | Found Exp. Targeting Computer 55924 | -2/Testing | Used Subatomic Replicator to replicate Prototype Leg 55927 | -2/Testing | Found Prototype Leg 55927 | -2/Testing | Identified Myomer Exoskeleton 56036 | -2/Testing | Discovered exit to Access (range 6) 56099 | -2/Testing | Found Prototype Ballistic Cannon 56099 | -2/Testing | Identified Omega Cannon 56166 | -2/Testing | Local machine network offline 56171 | -2/Testing | Spotted Investigator 56177 | -2/Testing | Scanned by Researcher 56189 | -2/Testing | Destroyed Investigator 56466 | -2/Testing | First assault squad dispatched 56869 | -2/Testing | Found Prototype Protection 56869 | -2/Testing | Identified SHELL Armor 57138 | -2/Testing | Entered Access 57138 | -1/Access | Evolved 2 slots: Power x1, Utility x1 57416 | -1/Access | First assault squad dispatched 57451 | -1/Access | Build established: Generator-Mutant 57469 | -1/Access | Destroyed 8 combat bots 57501 | -1/Access | Garrison activated, responded to threat 58101 | -1/Access | Garrison activated, responded to threat 58222 | -1/Access | High security lockdown imminent 58248 | -1/Access | Destroyed 11 combat bots 58302 | -1/Access | High security lockdown engaged 58324 | -1/Access | Warped through subspace 58334 | -1/Access | Destroyed 10 combat bots 58352 | -1/Access | Lost 8 parts (4p2n2u) 58502 | -1/Access | Destroyed Investigator 58544 | -1/Access | Build established: Alien-Mutant 58545 | -1/Access | Destroyed 9 combat bots 58567 | -1/Access | Spotted Striker 58574 | -1/Access | Spotted Striker 58575 | -1/Access | System corruption reached 10% 58575 | -1/Access | Spotted Executioner 58582 | -1/Access | Destroyed Striker 58588 | -1/Access | Destroyed Striker 58595 | -1/Access | Destroyed Executioner 58622 | -1/Access | Destroyed 23 combat bots 58624 | -1/Access | Lost 5 parts (1n3u1w) 58686 | -1/Access | Destroyed 14 combat bots 58780 | -1/Access | Energy Cycler disabled 58883 | -1/Access | Spotted Executioner 58883 | -1/Access | Spotted Striker 58888 | -1/Access | Destroyed Executioner 58901 | -1/Access | Destroyed Striker 58904 | -1/Access | Spotted Striker 58904 | -1/Access | Destroyed Striker 58915 | -1/Access | Destroyed Executioner 58929 | -1/Access | Destroyed Striker 58940 | -1/Access | Lost 8 parts (2p3n3u) 58945 | -1/Access | Destroyed Executioner 58945 | -1/Access | Spotted Executioner 58948 | -1/Access | Core integrity fell below 50% 58955 | -1/Access | Destroyed Executioner 58987 | -1/Access | Sterilization system engaged 59008 | -1/Access | Lost 8 parts (3p4n1w) 59009 | -1/Access | Destroyed 23 combat bots 59068 | -1/Access | Found Prototype Device 59068 | -1/Access | Identified Adv. Kinecellerator 59148 | -1/Access | Emitted hypermatrix ping 59153 | -1/Access | Assembled emerged from beneath the floor 59184 | -1/Access | Lost 8 parts (2p3n3u) 59189 | -1/Access | System corruption reached 30% 59287 | -1/Access | Ambient heat levels rising (+10) 59321 | -1/Access | Build established: Scavenger-Mutant 59437 | -1/Access | Ambient heat levels rising (+10) 59582 | -1/Access | Lost 4 parts (1n2u1w) 59587 | -1/Access | Ambient heat levels rising (+10) 59658 | -1/Access | Spotted B-99 Colossus 59707 | -1/Access | Destroyed B-99 Colossus 59711 | -1/Access | Spotted B-99 Colossus 59727 | -1/Access | Destroyed B-99 Colossus 59737 | -1/Access | Ambient heat levels rising (+10) 59753 | -1/Access | Lost 3 parts (1p2u) 59771 | -1/Access | Discovered new exit (range 5) 59779 | *** | Heading to fleet! Last Messages --------------- 59722_ Knocked back. 59722_ Penetrated by Slug. 59722_ Imp. Quantum Reactor destroyed. 59722_ Slug penetrates Wall. 59726_ Knocked back. 59726_ Slug penetrates Wall. 59726_ Penetrated by Slug. 59727_ Acquired 3 matter. 59727_ B-99 Colossus suffers critical hit (Meltdown). 59729_ System corrupted: Heat flow error (+278). Terminal melts. 59733_ Wall collapses. 59737_ ALERT: Ambient heat levels +10. 59744_ System corrupted: FCS attempts to trigger Null Cannon. 59744_ System corrupted: Null Cannon misfires. 59747_ Acquired 12 matter. 59760_ A6XTWKCKGQSXRUVPPLSS 59771_ Main Access Shell breached. 59771_ EXIT=FOUND 59776_ BW/QL>V0PGSJTRLJ15RX5Y=YXSI|JUS:KOYWH Map ----- +----------------------------------------------------+ | ?????????????????????????????????????????????????? | | ??????#??????????????????????????????????????????? | | ????? #??????????????????????????????????????????? | | ????? #??????????????????????????????????????????? | | ???? #??????????????????????????????????????????? | | ???? #??????????????????????????????????????????? | | ???? #??????????????????????????????????????????? | | ???? #??????????????????????????????????????????? | | ???? #??????????????????????????????????????????? | | #### ##?????????????????????????????????????????? | | #?????????????????????????????????????????? | | #?????????????????????????????????????????? | | #?????????????????????????????????????????? | | "#?????????????????????????????????????????? | | "#?????????????????????????????????????????? | | ""#?????????????????????????????????????????? | | " #?????????????????????????????????????????? | | #?????????????????????????????????????????? | | T #?????????????????????????????????????????? | | "#?????????????????????????????????????????? | | ""#?#########??###??????????????????????????? | | ""### "??" ??????????????????????????? | | ""##" % "??" ??????????????????????????? | | % """ "??" """"""?????????????????????? | | "??" " "?????????????????????? | | "??" " "@ "?????????????????????? | | % """" " "" "?????????????????????? | | % "?????????????????????? | | ########## """" """"""?????????????????????? | | #????????# "?" ?????????????????????????? | | #????????# ""?" ????????????????????????? | | #????????#########??######???????????????????????? | | #????????????????????????????????????????????????? | | +????????????????????????????????????????????????? | | #????????????????????????????????????????????????? | | #????????????????????????????????????????????????? | | ?????????????????????????????????????????????????? | | ?????????????????????????????????????????????????? | | ?????????????????????????????????????????????????? | | ?????????????????????????????????????????????????? | | ?????????????????????????????????????????????????? | | ?????????????????????????????????????????????????? | | ?????????????????????????????????????????????????? | | ?????????????????????????????????????????????????? | | ?????????????????????????????????????????????????? | | ?????????????????????????????????????????????????? | | ?????????????????????????????????????????????????? | | ?????????????????????????????????????????????????? | | ?????????????????????????????????????????????????? | | ?????????????????????????????????????????????????? | +----------------------------------------------------+ Best States ------------- Heat Dissipation 158 Coolant Potential 120 Energy Generation 123 Energy Capacity 1200 Matter Stores 300 Matter Capacity 600 Sight Range 16 Robot Scan Range 20 Terrain Scan Density 10 Jamming Range 16 Armor Coverage 1950 Resistance: KI 30 Resistance: EM 75 Propulsion Shielding 33 Utility Shielding 90 Melee Speed Boost 30 Phase Shifting 15 Evasion (%) 70 Targeting Accuracy 24 Core Analysis 6 Recoil Reduction 7 Particle Charging 30 Kinecelleration 50 Offensive Hacking 12 Defensive Hacking 10 Authchip Count 1 Item Schematics ----------------- Cld. Impulse Thruster | -2/Testing | Archive Enh. Coil Gun | -2/Testing | Archive Robot Schematics ------------------ None Fabricated ------------ Nothing Alien Tech Used ----------------- Integrated Dissipator Phase Armor Core Reset Matrix Integrated Reactor Integrated Mediator Core Expander Subatomic Replicator Transdimensional Reconstructor Achievements -------------- None Challenges ------------ None Game ------ Seed PhaseMetafieldCharge Manual? 0 Play Time 12:36:19 Cumulative 1377.5 hours Start 2023.06.25 @ 13:59:26 End 2023.06.26 @ 23:42:39 Sessions 3 Manual Loads 0 Difficulty Rogue Special Mode None Game No. 401 Rogue 401 Adventurer 0 Explorer 0 Win Type 2 Total 79 Types 13/18/16/3/1/2/22/2/2 Lore% 92 Gallery% 95 Achievement% 88 Wizard Run 0 Options --------- ASCII 0 Keyboard 0 Movement Numpad Keybinds 0 Fullscreen 2 Font 24/Smallcaps Map View 76x50 Tactical HUD 1 Map Filters NONE Filters NONE Steam 1 RUN: 2cada5c7-4aae-43ce-bd77-29c4a17ef766